{"text_format":"1","workbook":"xlsx","n_sheets":10,"sheets":["Identité","Notice","NQE","Données graphiques","Diagnostic simple","Tableau multi-paramètres","Source NQE & VGE","Matrice réponse","Source NQE","Légende diag"],"not_rendered":{"charts":3,"images":4,"macros":1,"external_links":3,"defined_names":12,"comments":3,"pivot_tables":0},"unopened":[],"bounds":{"document_bytes":16777216,"sheet_cells":100000,"rows_first":2000,"rows_last":500,"rows_between":2000,"halvings":0,"cell_chars":16384,"cell_head_chars":4096},"cells_cut":0,"cells_raw":0,"read":"whole","date_system":"1900"}

{"sheet":"Identité","index":0,"n_rows":12,"n_cols":3,"rows_kept":12,"cut":false,"hidden":false,"merged":[]}
["Objectif :"," évaluation de l'impact de rejets industriels"]
[]
["Auteur :","SPE/AERM"]
[]
["ACTION","Date","DESCRIPTION"]
["CREATION","2008-05-23","V1"]
["MAJ","2009-01-28","intégration des NQE de la Directive Fille du 16 décembre 2008"]
["MAJ","2010-03-01","intégration des NQE de l'arrêté du 25 janvier 2010 pour l'état chimique et pour l'état écologique"]
["MAJ","2010-09-01","Intégration des NQE de l'arrêté du 8 juillet 2010"]
["MAJ","2018-01-29"]
["MAJ","2018-11-28","Verification NQE conformité AM 27/7/2018"]
["MAJ","2020-06-30","introduction VGE sulfates et Chlorures"]

{"sheet":"Notice","index":1,"n_rows":22,"n_cols":5,"rows_kept":22,"cut":false,"hidden":false,"merged":[[13,0,13,4],[2,0,2,4]]}
["Notice"]
["Ce tableur est un outil d'évaluation théorique pour une première approche de l'impact. Il ne se substitue pas à un calcul des apports par bassin versant, en particulier dans le cas des macropolluants."]
["Pour un projet"]
[]
["Diagnostic général","contexte","impact du projet","investigation","précaution"]
["diag conc vert + diag flux vert","milieu peu dégradé + apport projet faible","rejet acceptable","sans objet","si substance concernée par objectif de réduction SDAGE, substitution ou nécessité de définir un échéancier de réduction"]
["diag conc orange + diag flux vert","milieu déjà dégradé + apport projet faible","seuil d'alerte dépassé","définir les différents apports de la substance considérée","si substance concernée par objectif de réduction SDAGE, substitution ou nécessité de définir un échéancier de réduction"]
["diag conc vert + diag flux orange","milieu peu dégradé + apport projet n'est pas négligeable (>10% du FMA)","rejet acceptable","rejet acceptable dans le cas ou le projet est le seul contributeur pour la substance sinon définir les différents apports de la substance considérée + explorer les pistes de réduction du flux (zéro rejet, recyclage, substitution, nature du traitement)","si substance concernée par objectif de réduction SDAGE, substitution ou nécessité de définir un échéancier de réduction"]
["diag conc orange + diag flux orange","milieu déjà dégradé + apport projet n'est pas négligeable (>10% du FMA)","seuil d'alerte dépassé","définir les différents apports de la substance considérée + explorer les pistes de réduction du flux (zéro rejet, recyclage, substitution, nature du traitement)","si substance concernée par objectif de réduction SDAGE, substitution ou nécessité de définir un échéancier de réduction"]
["diag conc rouge ","milieu en mauvais état","rejet inacceptable","envisager la substitution"]
["diag flux rouge","apport du projet supérieur à l'admissibilité du milieu","seuil d'alerte dépassé avec risque de déclassement du fait du projet","nécessité de réduire l'apport ou envisager la substitution","si substance concernée par objectif de réduction SDAGE, substitution ou nécessité de définir un échéancier de réduction"]
[]
[]
["Pour un établissement existant sans projet (action SDAGE)"]
[]
["Diagnostic général","contexte","impact du projet","investigation","précaution"]
["diag conc vert + diag flux vert","milieu peu dégradé + apport projet faible","rejet acceptable","sans objet","si substance concernée par objectif de réduction SDAGE, substitution ou nécessité de définir un échéancier de réduction en lien avec les PAOT"]
["diag conc orange + diag flux vert","milieu déjà dégradé + apport projet faible","seuil d'alerte dépassé","ajustement de la VLE aux conditions réelles de rejet","si substance concernée par objectif de réduction SDAGE, substitution ou nécessité de définir un échéancier de réduction en lien avec les PAOT"]
["diag conc vert + diag flux orange","milieu peu dégradé + apport projet n'est pas négligeable (>10% du FMA)","rejet acceptable","programme d'action visant à réduire l'apport de la substance  si établissement inscrit au PAOT","si substance concernée par objectif de réduction SDAGE, substitution ou nécessité de définir un échéancier de réduction en lien avec les PAOT"]
["diag conc orange + diag flux orange","milieu déjà dégradé + apport projet n'est pas négligeable (>10% du FMA)","seuil d'alerte dépassé","programme d'action visant à réduire l'apport de la substance  si établissement inscrit au PAOT + ajustement de la VLE aux conditions réelles de rejet","si substance concernée par objectif de réduction SDAGE, substitution ou nécessité de définir un échéancier de réduction en lien avec les PAOT"]
["diag conc rouge ","milieu en mauvais état","rejet inacceptable","ajustement de la VLE aux conditions réelles de rejet"]
["diag flux rouge","apport du projet supérieur à l'admissibilité du milieu","seuil d'alerte dépassé avec risque de déclassement du fait du projet","étude technico-économique visant à réduire l'apport de la substance et révision à terme de la VLE correspondante","si substance concernée par objectif de réduction SDAGE, substitution ou nécessité de définir un échéancier de réduction"]

{"sheet":"NQE","index":2,"n_rows":254,"n_cols":10,"rows_kept":254,"cut":false,"hidden":true,"merged":[]}
["Code SANDRE","Substance individuelle","Substance + conditions","Type DCE","unité","Remarques","origine seuil","NQE-MA","NQE-CMA","test"]
[1,null,"Sélectionner un paramètre"]
[1284,"1,1,1-Trichloroéthane","1,1,1-Trichloroéthane","liste II","µg/l",null,"Arrêté du 8 juillet 2010",26,"pas de seuil disponible"]
[1271,"1,1,2,2-Tétrachloroéthane","1,1,2,2-Tétrachloroéthane","liste II","µg/l",null,"circulaire du 7 mai 2007",140,"pas de seuil disponible"]
[1285,"1,1,2-Trichloroéthane","1,1,2-Trichloroéthane","liste II","µg/l",null,"Arrêté du 8 juillet 2010",300,"pas de seuil disponible"]
[1160,"1,1-Dichloroéthane","1,1-Dichloroéthane","liste II","µg/l",null,"Arrêté du 8 juillet 2010",92,"pas de seuil disponible"]
[1162,"1,1-Dichloroéthylène","1,1-Dichloroéthylène","liste II","µg/l",null,"circulaire du 7 mai 2007",11.6,"pas de seuil disponible"]
[1631,"1,2,4,5-Tétrachlorobenzène","1,2,4,5-Tétrachlorobenzène","liste II","µg/l",null,"circulaire du 7 mai 2007",0.32,"pas de seuil disponible"]
[1165,"1,2-Dichlorobenzène","1,2-Dichlorobenzène","liste II","µg/l",null,"Arrêté du 8 juillet 2010",10,"pas de seuil disponible"]
[1161,"1,2-Dichloroéthane","1,2-Dichloroéthane","Substance Prioritaire","µg/l",null,"arrêté du 27 juillet 2015 - annexe 8",10,"pas de seuil disponible"]
[1163,"1,2-Dichloroéthylène","1,2-Dichloroéthylène","liste II","µg/l",null,"circulaire du 7 mai 2007",1100,"pas de seuil disponible"]
[1164,"1,3-Dichlorobenzène","1,3-Dichlorobenzène","liste II","µg/l",null,"Arrêté du 8 juillet 2010",10,"pas de seuil disponible"]
[1166,"1,4-Dichlorobenzène","1,4-Dichlorobenzène","liste II","µg/l",null,"Arrêté du 8 juillet 2010",20,"pas de seuil disponible"]
[1469,"1-Chloro-2-nitrobenzène","1-Chloro-2-nitrobenzène","liste II","µg/l",null,"circulaire du 7 mai 2007",26,"pas de seuil disponible"]
[1468,"1-Chloro-3-nitrobenzène","1-Chloro-3-nitrobenzène","liste II","µg/l",null,"circulaire du 7 mai 2007",3.2,"pas de seuil disponible"]
[1470,"1-Chloro-4nitrobenzène","1-Chloro-4nitrobenzène","liste II","µg/l",null,"circulaire du 7 mai 2007",2,"pas de seuil disponible"]
[1640,"2 Méthylphénol","2 Méthylphénol","-","µg/l",null,"SEQ Eau V2 (limite vert/jaune potentialité biologique)",100,"pas de seuil disponible"]
[1141,"2,4-D (dont sels de 2,4-D et esters de 2,4-D)","2,4-D (dont sels de 2,4-D et esters de 2,4-D)","liste II-Etat écologique","µg/l",null,"arrêté du 27 juillet 2015",2.2000000000000002,"pas de seuil disponible"]
[99999,"2,4-D Acide","2,4-D Acide","liste II","µg/l","famille 2,4-D (seuil de la famille 1,5µg/l)","SEQ Eau V2 (limite vert/jaune potentialité biologique)","pas de seuil disponible","pas de seuil disponible"]
[2522,"2,4-D Ester éthylhexyl","2,4-D Ester éthylhexyl","liste II","µg/l","famille 2,4-D (seuil de la famille 1,5µg/l)","SEQ Eau V2 (limite vert/jaune potentialité biologique)","pas de seuil disponible","pas de seuil disponible"]
[1486,"2,4-Dichlorophénol","2,4-Dichlorophénol","-","µg/l",null,"Arrêté du 8 juillet 2010",10,"pas de seuil disponible"]
[1212,"2.4 MCPA","2.4 MCPA","Etat écologique","µg/l",null,"arrêté du 27 juillet 2015",0.5,"pas de seuil disponible"]
[1593,"2-Chloroaniline","2-Chloroaniline","liste II","µg/l",null,"Arrêté du 25 janvier 2010",0.3,"pas de seuil disponible"]
[1471,"2-Chlorophénol","2-Chlorophénol","liste II","µg/l",null,"circulaire du 7 mai 2007",6,"pas de seuil disponible"]
[1602,"2-Chlorotoluène","2-Chlorotoluène","liste II","µg/l",null,"circulaire du 7 mai 2007",14,"pas de seuil disponible"]
[1639,"3 Méthylphénol","3 Méthylphénol","-","µg/l",null,"SEQ Eau V2 (limite vert/jaune potentialité biologique)",100,"pas de seuil disponible"]
[1592,"3-Chloroaniline","3-Chloroaniline","liste II","µg/l",null,"circulaire du 7 mai 2007",1.3,"pas de seuil disponible"]
[1651,"3-Chlorophénol","3-Chlorophénol","liste II","µg/l",null,"circulaire du 7 mai 2007",4,"pas de seuil disponible"]
[2065,"3-Chloropropène","3-Chloropropène","liste II","µg/l",null,"Arrêté du 8 juillet 2010",0.34,"pas de seuil disponible"]
[1601,"3-Chlorotoluène","3-Chlorotoluène","liste II","µg/l",null,"circulaire du 7 mai 2007",14,"pas de seuil disponible"]
[1638,"4 Méthylphénol","4 Méthylphénol","-","µg/l",null,"SEQ Eau V2 (limite vert/jaune potentialité biologique)",100,"pas de seuil disponible"]
[1636,"4-Chloro-3-méthylphénol","4-Chloro-3-méthylphénol","liste II","µg/l",null,"circulaire du 7 mai 2007",9.1999999999999993,"pas de seuil disponible"]
[1591,"4-Chloroaniline","4-Chloroaniline","liste II","µg/l",null,"circulaire du 7 mai 2007",1,"pas de seuil disponible"]
[1650,"4-Chlorophénol","4-Chlorophénol","liste II","µg/l",null,"circulaire du 7 mai 2007",4,"pas de seuil disponible"]
[1600,"4-Chlorotoluène","4-Chlorotoluène","liste II","µg/l",null,"circulaire du 7 mai 2007",32,"pas de seuil disponible"]
[1453,"Acénaphtène","Acénaphtène","liste II","µg/l",null,"circulaire du 7 mai 2007",0.7,"pas de seuil disponible"]
[1622,"Acénaphtylène","Acénaphtylène","liste II","µg/l",null,"circulaire du 7 mai 2007",0.4,"pas de seuil disponible"]
[1776,"Acétate de triphényl étain (acetate de fentine)","Acétate de triphényl étain (acetate de fentine)","-","µg/l",null,"Arrêté du 8 juillet 2010",0.01,"pas de seuil disponible"]
[1465,"Acide chloroacétique","Acide chloroacétique","liste II","µg/l",null,"circulaire du 7 mai 2007",0.57999999999999996,"pas de seuil disponible"]
[6561,"acide perfluorooctanesulfonique et ses dérivés (PFOS)","acide perfluorooctanesulfonique et ses dérivés (PFOS)","Substance Dangereuse Prioritaire","µg/l",null,"arrêté du 27 juillet 2015 - annexe 8",6.4999999999999997E-4,36]
[1688,"Aclonifène","Aclonifène","Substance Prioritaire","µg/l",null,"arrêté du 27 juillet 2015 - annexe 8",0.12,0.12]
[1101,"Alachlore","Alachlore","Substance Prioritaire","µg/l",null,"arrêté du 27 juillet 2015 - annexe 8",0.3,0.7]
[1102,"Aldicarbe","Aldicarbe","-","µg/l",null,"SEQ Eau V2 (limite vert/jaune potentialité biologique)",0.05,"pas de seuil disponible"]
[1370,"Aluminium total","Aluminium total -- [pH>6,5]","-","µg/l","pH>6,5","SEQ Eau V2 (limite vert/jaune potentialité biologique)",200,"pas de seuil disponible"]
[1105,"Aminotriazole","Aminotriazole","Etat écologique","µg/l",null,"arrêté du 27 juillet 2015",0.08,"pas de seuil disponible"]
[1335,"Ammoniaque","Ammoniaque","liste II","µgNH4/l",null,"arrêté du 27 juillet 2015",500,"pas de seuil disponible"]
[1907,"AMPA","AMPA","Etat écologique","µg/l",null,"arrêté du 27 juillet 2015",452,"pas de seuil disponible"]
[1458,"Anthracène","Anthracène","Substance Dangereuse Prioritaire","µg/l",null,"arrêté du 27 juillet 2015 - annexe 8",0.1,0.1]
[1376,"Antimoine","Antimoine -- [+bruit de fond]","liste II","µg/l","+bruit de fond","circulaire du 7 mai 2007",113,"pas de seuil disponible"]
[1368,"Argent","Argent -- [+bruit de fond]","liste II","µg/l","+bruit de fond","circulaire du 7 mai 2007",0.05,"pas de seuil disponible"]
[1369,"Arsenic et composés minéraux","Arsenic et composés minéraux -- [+bruit de fond]","Etat écologique","µg/l","+bruit de fond","arrêté du 27 juillet 2015",0.86,"pas de seuil disponible"]
[1107,"Atrazine","Atrazine","Substance Prioritaire","µg/l",null,"arrêté du 27 juillet 2015 - annexe 8",0.6,2]
[1319,"Azote Kjeldahl","Azote Kjeldahl","-","µg/l N",null,"SEQ Eau V2 (limite vert/jaune potentialité biologique)",2000,"pas de seuil disponible"]
[1951,"Azoxystrobine","Azoxystrobine","Etat écologique","µg/l",null,"arrêté du 27 juillet 2015",0.95,"pas de seuil disponible"]
[1396,"Baryum","Baryum -- [+bruit de fond]","liste II","µg/l","+bruit de fond","circulaire du 7 mai 2007",58,"pas de seuil disponible"]
[1113,"Bentazone","Bentazone","Etat écologique","µg/l",null,"arrêté du 27 juillet 2015",70,"pas de seuil disponible"]
[1114,"Benzène","Benzène","Substance Prioritaire","µg/l",null,"arrêté du 27 juillet 2015 - annexe 8",10,50]
[1082,"Benzo(a)anthracène","Benzo(a)anthracène","liste II","µg/l",null,"circulaire du 7 mai 2007",5.0000000000000001E-3,"pas de seuil disponible"]
[1115,"Benzo(a)pyrène","Benzo(a)pyrène","Substance Dangereuse Prioritaire","µg/l",null,"arrêté du 27 juillet 2015 - annexe 8",1.7000000000000001E-4,0.27]
[1116,"Benzo(b)fluoranthène","Benzo(b)fluoranthène -- [famille benzo(b) benzo(k) fluoranthène (seuil de la famille 0,03 µg/l)]","Substance Dangereuse Prioritaire","µg/l","famille benzo(b) benzo(k) fluoranthène (seuil de la famille 0,03 µg/l)","arrêté du 27 juillet 2015 - annexe 8","pas de seuil disponible",1.7000000000000001E-2]
[1118,"Benzo(g,h,i)perylène","Benzo(g,h,i)perylène -- [famille (seuil de la famille 0,002 µg/l)]","Substance Dangereuse Prioritaire","µg/l","famille (seuil de la famille 0,002 µg/l)","arrêté du 27 juillet 2015 - annexe 8","pas de seuil disponible",8.2000000000000007E-3]
[1117,"Benzo(k)fluoranthène","Benzo(k)fluoranthène -- [famille benzo(b) benzo(k) fluoranthène (seuil de la famille 0,03 µg/l)]","Substance Dangereuse Prioritaire","µg/l","famille benzo(b) benzo(k) fluoranthène (seuil de la famille 0,03 µg/l)","arrêté du 27 juillet 2015 - annexe 8","pas de seuil disponible",1.7000000000000001E-2]
[1377,"Béryllium","Béryllium -- [+bruit de fond]","liste II","µg/l","+bruit de fond","circulaire du 7 mai 2007",0.04,"pas de seuil disponible"]
[1119,"Bifenox","Bifenox","Substance Prioritaire","µg/l",null,"arrêté du 27 juillet 2015 - annexe 8",1.2E-2,0.04]
[1584,"Biphényle","Biphényle","Etat écologique","µg/l",null,"arrêté du 27 juillet 2015",3.3,"pas de seuil disponible"]
[1362,"Bore","Bore -- [+bruit de fond]","liste II","µg/l","+bruit de fond","circulaire du 7 mai 2007",218,"pas de seuil disponible"]
[5526,"Boscalid","Boscalid","Etat écologique","µg/l",null,"arrêté du 27 juillet 2015",11.6,"pas de seuil disponible"]
[1388,"Cadmium et composés","Cadmium et ses composés - Classe 1 [<40mg CaCo3/l ]","Substance Dangereuse Prioritaire","µg/l","classe 1","arrêté du 27 juillet 2015",0.08,0.45]
[1388,"Cadmium et composés","Cadmium et ses composés -Classe 2 [40 à <50mg CaCo3/l ]","Substance Dangereuse Prioritaire","µg/l","classe 2","arrêté du 27 juillet 2015",0.09,0.45]
[1388,"Cadmium et composés","Cadmium et ses composés - Classe 3 [50 à <100mg CaCo3/l ]","Substance Dangereuse Prioritaire","µg/l","classe 3","arrêté du 27 juillet 2015",0.15,0.6]
[1388,"Cadmium et composés","Classe 4 [100 à <200mg CaCo3/l ]","Substance Dangereuse Prioritaire","µg/l","classe 4","arrêté du 27 juillet 2015",0.25,0.9]
[1388,"Cadmium et composés","Classe 5 [>=200mg CaCo3/l ]","Substance Dangereuse Prioritaire","µg/l","classe 5","arrêté du 27 juillet 2015",0.25,1.5]
[1128,"Captane","Captane","-","µg/l",null,"SEQ Eau V2 (limite vert/jaune potentialité biologique)",1.7,"pas de seuil disponible"]
[1129,"Carbendazime","Carbendazime","-","µg/l",null,"SEQ Eau V2 (limite vert/jaune potentialité biologique)",7.0000000000000001E-3,"pas de seuil disponible"]
[1130,"Carbofuran","Carbofuran","-","µg/l",null,"SEQ Eau V2 (limite vert/jaune potentialité biologique)",1.4999999999999999E-2,"pas de seuil disponible"]
[1841,"Carbone Organique Dissous","Carbone Organique Dissous","physico-chimie générale","µg/l C",null,"arrêté du 27 juillet 2015",700,"pas de seuil disponible"]
[1866,"Chlordécone","Chlordécone","Etat écologique","µg/l",null,"arrêté du 27 juillet 2015",5.0000000000000004E-6,"pas de seuil disponible"]
[1464,"Chlorfenvinphos","Chlorfenvinphos","Substance Prioritaire","µg/l",null,"arrêté du 27 juillet 2015 - annexe 8",0.1,0.3]
[1955,"Chloroalcanes C10-C13","C10-13-chloroalcanes","Substance Dangereuse Prioritaire","µg/l",null,"arrêté du 27 juillet 2015 - annexe 8",0.4,1.4]
[1135,"Chloroforme","Chloroforme","Substance Prioritaire","µg/l",null,"arrêté du 27 juillet 2015 - annexe 8",2.5,"pas de seuil disponible"]
[2611,"Chloroprène (2-Chloro-1,3-butadiène)","Chloroprène (2-Chloro-1,3-butadiène)","liste II","µg/l",null,"Arrêté du 8 juillet 2010",32,"pas de seuil disponible"]
[1473,"Chlorothalonil","Chlorothalonil","-","µg/l",null,"SEQ Eau V2 (limite vert/jaune potentialité biologique)",4.0000000000000001E-3,"pas de seuil disponible"]
[1474,"Chlorprophame","Chlorprophame","Etat écologique","µg/l",null,"arrêté du 27 juillet 2015",4,"pas de seuil disponible"]
[1083,"Chlorpyrifos (ethylchlorpyrifos)","Chlorpyrifos (ethylchlorpyrifos)","Substance Prioritaire","µg/l",null,"arrêté du 27 juillet 2015 - annexe 8",0.03,0.1]
[1136,"Chlortoluron","Chlortoluron","Etat écologique","µg/l",null,"arrêté du 27 juillet 2015",0.1,"pas de seuil disponible"]
[1777,"Chlorure de triphenylétain (chlorure de fentine)","Chlorure de triphenylétain (chlorure de fentine)","-","µg/l",null,"Arrêté du 8 juillet 2010",0.01,"pas de seuil disponible"]
[1753,"Chlorure de vinyle (Chloroéthylène)","Chlorure de vinyle (Chloroéthylène)","liste II","µg/l",null,"Arrêté du 8 juillet 2010",0.5,"pas de seuil disponible"]
[1337,"Chlorures","Chlorures","Etat écologique","µg/l","sans prise en compte du fond géochimique","avis INERIS 27/5/19",30000,"pas de seuil disponible"]
[1337,"Chlorures","Chlorures [absence de mollusque bivalves]","Etat écologique","µg/l",null,"avis INERIS 27/5/19",45000,"pas de seuil disponible"]
[1389,"Chrome","Chrome -- [+ bruit de fond]","Etat écologique","µg/l","+ bruit de fond","arrêté du 27 juillet 2015",3.4,"pas de seuil disponible"]
[1476,"Chrysène","Chrysène","liste II","µg/l",null,"circulaire du 7 mai 2007",6.0000000000000001E-3,"pas de seuil disponible"]
[1379,"Cobalt","Cobalt -- [+bruit de fond]","liste II","µg/l","+bruit de fond","circulaire du 7 mai 2007",0.3,"pas de seuil disponible"]
[2879,"Composés du tributylétain (tributylétain-cation)","Composés du tributylétain (tributylétain-cation)","Substance Prioritaire","µg/l",null,"arrêté du 27 juillet 2015 - annexe 8",2.0000000000000001E-4,1.5E-3]
[1392,"Cuivre","Cuivre -- [+bruit de fond]","Etat écologique","µg/l","+bruit de fond","arrêté du 27 juillet 2015",1,"pas de seuil disponible"]
[1390,"Cyanures","Cyanures","liste II","µg/l",null,"circulaire du 7 mai 2007",0.56999999999999995,"pas de seuil disponible"]
[1084,"Cyanures libres","Cyanures libres","-","µg/l",null,"SEQ Eau V2 (limite vert/jaune potentialité biologique)",0.2,"pas de seuil disponible"]
[1935,"Cybutryne","Cybutryne","Substance Prioritaire","µg/l",null,"arrêté du 27 juillet 2015 - annexe 8",2.5000000000000001E-3,1.6E-2]
[1139,"Cymoxanil","Cymoxanil","-","µg/l",null,"SEQ Eau V2 (limite vert/jaune potentialité biologique)",0.06,"pas de seuil disponible"]
[1140,"Cyperméthrine","Cyperméthrine","Substance Prioritaire","µg/l",null,"arrêté du 27 juillet 2015 - annexe 8",8.0000000000000007E-5,5.9999999999999995E-4]
[1359,"Cyprodinil","Cyprodinil","Etat écologique","µg/l",null,"Arrêté du 27 juillet 2015",2.5999999999999999E-2,"pas de seuil disponible"]
[1313,"DBO5","DBO5 ","physico-chimie générale","µg/l",null,"arrêté du 27 juillet 2015",6000,"pas de seuil disponible"]
[1314,"DCO","DCO ","-","µg/l",null,"SEQ Eau V2 (limite vert/jaune potentialité biologique)",30000,"pas de seuil disponible"]
[1143,"DDD op'","DDD op'","-","µg/l",null,"SEQ Eau V2 (limite vert/jaune potentialité biologique)",6.0000000000000001E-3,"pas de seuil disponible"]
[1145,"DDE op'","DDE op'","-","µg/l",null,"SEQ Eau V2 (limite vert/jaune potentialité biologique)",0.3,"pas de seuil disponible"]
[1148,"DDT pp' (para-para-DDT)","DDT pp' -- [famille DDT (seuil de la famille 0,025 µg/l)]","Liste I","µg/l",null,"arrêté du 27 juillet 2015 - annexe 8",0.01,"pas de seuil disponible"]
[7146,"DDT total","DDT total (somme des isomères 1,1,1-trichloro-2,2-bis(p-chlorophényl)éthane; 1,1,1-trichloro-2(o-chlorophényl)-2-(p-phényl)éthane; 1,1-dichloro-2,2 bis (p-chlorophényl)éthylène et 1,1-dichloro-2,2 bis (p chlorophényl)éthane)","autre polluant non prioritaire","µg/l",null,"arrêté du 27 juillet 2015 - annexe 8",2.5000000000000001E-2,"pas de seuil disponible"]
[1109,"Deisopropyl atrazine","Deisopropyl atrazine","-","µg/l",null,"SEQ Eau V2 (limite vert/jaune potentialité biologique)",0.2,"pas de seuil disponible"]
[1149,"Deltaméthrine","Deltaméthrine","-","µg/l",null,"SEQ Eau V2 (limite vert/jaune potentialité biologique)",2.0000000000000001E-4,"pas de seuil disponible"]
[1108,"Déséthyl-atrazine","Déséthyl-atrazine","-","µg/l",null,"SEQ Eau V2 (limite vert/jaune potentialité biologique)",0.2,"pas de seuil disponible"]
[6616,"Di(2-éthylhexyl)phtalate (DEHP)","Di(2-éthylhexyl)phtalate (DEHP)","Substance Prioritaire","µg/l",null,"arrêté du 27 juillet 2015 - annexe 8",1.3,"pas de seuil disponible"]
[1621,"Dibenzo(ah)anthracène","Dibenzo(ah)anthracène","liste II","µg/l",null,"circulaire du 7 mai 2007",6.0000000000000002E-5,"pas de seuil disponible"]
[1480,"Dicamba","Dicamba","-","µg/l",null,"SEQ Eau V2 (limite vert/jaune potentialité biologique)",3.9,"pas de seuil disponible"]
[1589,"Dichloroaniline-2,4","Dichloroaniline-2,4","-","µg/l",null,"Arrêté du 8 juillet 2010",0.2,"pas de seuil disponible"]
[1586,"Dichloroaniline-3,4","Dichloroaniline-3,4","-","µg/l",null,"SEQ Eau V2 (limite vert/jaune potentialité biologique)",0.03,"pas de seuil disponible"]
[1168,"Dichlorométhane","Dichlorométhane","Substance Prioritaire","µg/l",null,"arrêté du 27 juillet 2015 - annexe 8",20,"pas de seuil disponible"]
[1617,"Dichloronitrobenzène-2,3","Dichloronitrobenzène-2,3 -- [famille dichloronitrobenzènes (seuil de la famille 0,5 µg/l)]","liste II","µg/l","famille dichloronitrobenzènes (seuil de la famille 0,5 µg/l)","circulaire du 7 mai 2007","pas de seuil disponible","pas de seuil disponible"]
[1615,"Dichloronitrobenzène-2,5","Dichloronitrobenzène-2,5 -- [famille dichloronitrobenzènes (seuil de la famille 0,5 µg/l)]","liste II","µg/l","famille dichloronitrobenzènes (seuil de la famille 0,5 µg/l)","circulaire du 7 mai 2007","pas de seuil disponible","pas de seuil disponible"]
[1614,"Dichloronitrobenzène-3,4","Dichloronitrobenzène-3,4 -- [famille dichloronitrobenzènes (seuil de la famille 0,5 µg/l)]","liste II","µg/l","famille dichloronitrobenzènes (seuil de la famille 0,5 µg/l)","circulaire du 7 mai 2007","pas de seuil disponible","pas de seuil disponible"]
[1169,"Dichlorprop","Dichlorprop","liste II","µg/l",null,"circulaire du 7 mai 2007",1.6,"pas de seuil disponible"]
[1769,"Dichlorure de dibutylétain","Dichlorure de dibutylétain","liste II","µg/l",null,"circulaire du 7 mai 2007",0.17,"pas de seuil disponible"]
[1170,"Dichlorvos","Dichlorvos","liste II","µg/l",null,"circulaire du 7 mai 2007",1E-3,"pas de seuil disponible"]
[1172,"Dicofol","Dicofol","Substance Dangereuse Prioritaire","µg/l",null,"arrêté du 27 juillet 2015 - annexe 8",1.2999999999999999E-3,"pas de seuil disponible"]
[2826,"Diéthylamine","Diéthylamine","liste II","µg/l",null,"circulaire du 7 mai 2007",20,"pas de seuil disponible"]
[1814,"Diflufenicanil","Diflufenicanil","Etat écologique","µg/l",null,"arrêté du 27 juillet 2015",0.01,"pas de seuil disponible"]
[2773,"Diméthylamine","Diméthylamine","liste II","µg/l",null,"circulaire du 7 mai 2007",40,"pas de seuil disponible"]
[7707,"Dioxines et composés de type dioxine","Dioxines et composés de type dioxine","Substance Dangereuse Prioritaire","µg/l",null,"arrêté du 27 juillet 2015 - annexe 8","pas de seuil disponible","pas de seuil disponible"]
[7705,"Diphényléthers bromés","Diphényléthers bromés (somme des congénères 28, 47, 99, 100, 153 et 154)","Substance Dangereuse Prioritaire","µg/l","dureté classe 1","arrêté du 27 juillet 2015 - annexe 8","≤0,08","≤0,45"]
[7705,"Diphényléthers bromés","Diphényléthers bromés (somme des congénères 28, 47, 99, 100, 153 et 154)","Substance Dangereuse Prioritaire","µg/l","dureté classe 2","arrêté du 27 juillet 2015 - annexe 8",0.08,0.45]
[7705,"Diphényléthers bromés","Diphényléthers bromés (somme des congénères 28, 47, 99, 100, 153 et 154)","Substance Dangereuse Prioritaire","µg/l","dureté classe 3","arrêté du 27 juillet 2015 - annexe 8",0.09,0.6]
[7705,"Diphényléthers bromés","Diphényléthers bromés (somme des congénères 28, 47, 99, 100, 153 et 154)","Substance Dangereuse Prioritaire","µg/l","dureté classe 4","arrêté du 27 juillet 2015 - annexe 8",0.15,0.9]
[7705,"Diphényléthers bromés","Diphényléthers bromés (somme des congénères 28, 47, 99, 100, 153 et 154)","Substance Dangereuse Prioritaire","µg/l","dureté classe 5","arrêté du 27 juillet 2015 - annexe 8",0.25,1.5]
[1699,"Diquat","Diquat","-","µg/l",null,"SEQ Eau V2 (limite vert/jaune potentialité biologique)",0.2,"pas de seuil disponible"]
[1177,"Diuron","Diuron","Substance Prioritaire","µg/l",null,"arrêté du 27 juillet 2015 - annexe 8",0.2,1.8]
[1493,"EDTA","EDTA","-","µg/l",null,"SEQ Eau V2 (limite vert/jaune potentialité biologique)",41,"pas de seuil disponible"]
[1743,"Endosulfan","Endosulfan","Substance Dangereuse Prioritaire","µg/l",null,"arrêté du 27 juillet 2015 - annexe 8",5.0000000000000001E-3,0.01]
[1494,"Epichlorohydrine","Epichlorohydrine","liste II","µg/l",null,"circulaire du 7 mai 2007",1.3,"pas de seuil disponible"]
[1380,"Etain","Etain -- [+bruit de fond]","liste II","µg/l","+bruit de fond","circulaire du 7 mai 2007",1.5,"pas de seuil disponible"]
[1184,"Ethofumesate","Ethofumesate","-","µg/l",null,"SEQ Eau V2 (limite vert/jaune potentialité biologique)",0.8,"pas de seuil disponible"]
[1497,"Ethylbenzène","Ethylbenzène","liste II","µg/l",null,"Arrêté du 8 juillet 2010",20,"pas de seuil disponible"]
[1187,"Fenitrothion","Fenitrothion","liste II","µg/l",null,"circulaire du 7 mai 2007",0.01,"pas de seuil disponible"]
[1700,"Fenpropidine","Fenpropidine","-","µg/l",null,"SEQ Eau V2 (limite vert/jaune potentialité biologique)",6.0000000000000001E-3,"pas de seuil disponible"]
[1189,"Fenpropimorphe","Fenpropimorphe","-","µg/l",null,"SEQ Eau V2 (limite vert/jaune potentialité biologique)",2.2000000000000002,"pas de seuil disponible"]
[1191,"Fluoranthène","Fluoranthène","Substance Prioritaire","µg/l",null,"arrêté du 27 juillet 2015 - annexe 8",6.3E-3,0.12]
[1623,"Fluorène","Fluorène","liste II","µg/l",null,"circulaire du 7 mai 2007",0.3,"pas de seuil disponible"]
[1391,"Fluorures","Fluorures","liste II","µg/l",null,"circulaire du 7 mai 2007",370,"pas de seuil disponible"]
[1194,"Flusilazole","Flusilazole","-","µg/l",null,"SEQ Eau V2 (limite vert/jaune potentialité biologique)",1,"pas de seuil disponible"]
[1192,"Folpel","Folpel","-","µg/l",null,"SEQ Eau V2 (limite vert/jaune potentialité biologique)",0.02,"pas de seuil disponible"]
[1975,"Fosetyl aluminium","Fosetyl aluminium","-","µg/l",null,"SEQ Eau V2 (limite vert/jaune potentialité biologique)",5,"pas de seuil disponible"]
[1506,"Glyphosate (Sulfosate)","Glyphosate (Sulfosate)","Etat écologique","µg/l",null,"arrêté du 27 juillet 2015",28,"pas de seuil disponible"]
[1199,"Hexachlorobenzène","Hexachlorobenzène","Substance Dangereuse Prioritaire","µg/l",null,"arrêté du 27 juillet 2015 - annexe 8","pas de seuil disponible",0.05]
[1652,"Hexachlorobutadiène","Hexachlorobutadiène","Substance Dangereuse Prioritaire","µg/l",null,"arrêté du 27 juillet 2015 - annexe 8","pas de seuil disponible",0.6]
[5537,"Hexachlorocyclohexane","hexachlorocyclohexane","Etat chimique","µg/l",null,"arrêté du 27 juillet 2015 - annexe 8",0.02,0.04]
[1200,"Hexachlorocyclohexane alpha","Hexachlorocyclohexane alpha -- [famille Hexachlorocyclohexane]","liste II","µg/L",null,"Arrêté du 8 juillet 2010",0.02,"pas de seuil disponible"]
[1201,"Hexachlorocyclohexane bêta","Hexachlorocyclohexane bêta -- [famille Hexachlorocyclohexane]","liste II","µg/L",null,"Arrêté du 8 juillet 2010",0.02,"pas de seuil disponible"]
[1202,"Hexachlorocyclohexane delta","Hexachlorocyclohexane delta -- [famille Hexachlorocyclohexane]","liste II","µg/L",null,"Arrêté du 8 juillet 2010",0.02,"pas de seuil disponible"]
[2046,"Hexachlorocyclohexane epsilon","Hexachlorocyclohexane epsilon -- [famille Hexachlorocyclohexane]","liste II","µg/L",null,"Arrêté du 8 juillet 2010",0.02,"pas de seuil disponible"]
[1778,"Hydroxyde de triphenylétain (hydroxyde de fentine)","Hydroxyde de triphenylétain (hydroxyde de fentine)","-","µg/l",null,"Arrêté du 8 juillet 2010",0.01,"pas de seuil disponible"]
[1877,"Imidaclopride","Imidaclopride","Etat écologique","µg/l",null,"arrêté du 27 juillet 2015",0.2,"pas de seuil disponible"]
[1204,"Indeno(1,2,3-cd)pyrène","Indeno(1,2,3-cd)pyrène -- [famille (seuil de la famille 0,002 µg/l)]","Substance Dangereuse Prioritaire","µg/l","famille (seuil de la famille 0,002 µg/l)","arrêté du 27 juillet 2015 - annexe 8","pas de seuil disponible","pas de seuil disponible"]
[1205,"Ioxynil","Ioxynil","-","µg/l",null,"SEQ Eau V2 (limite vert/jaune potentialité biologique)",0.4,"pas de seuil disponible"]
[1206,"Iprodione","Iprodione","Etat écologique","µg/l",null,"arrêté du 27 juillet 2015",0.35,"pas de seuil disponible"]
[1633,"Isopropyl benzène","Isopropyl benzène","liste II","µg/l",null,"circulaire du 7 mai 2007",22,"pas de seuil disponible"]
[1208,"Isoproturon","Isoproturon","Substance Prioritaire","µg/l",null,"arrêté du 27 juillet 2015 - annexe 8",0.3,1]
[1203,"Lindane","Lindane -- [famille Hexachlorocyclohexane]","Substance Prioritaire",null,null,"Arrêté du 8 juillet 2010",0.1,"pas de seuil disponible"]
[1209,"Linuron","Linuron","Etat écologique","µg/l",null,"arrêté du 27 juillet 2015",1,"pas de seuil disponible"]
[1210,"Malathion","Malathion","-","µg/l",null,"Arrêté du 8 juillet 2010",0.01,"pas de seuil disponible"]
[1211,"Mancozebe","Mancozebe","-","µg/l",null,"SEQ Eau V2 (limite vert/jaune potentialité biologique)",1,"pas de seuil disponible"]
[1705,"Manèbe","Manèbe","-","µg/l",null,"SEQ Eau V2 (limite vert/jaune potentialité biologique)",0.1,"pas de seuil disponible"]
[1305,"Matières en suspension","Matières en suspension","-","µg/L",null,"SEQ Eau V2 (limite vert/jaune potentialité biologique)",50000,"pas de seuil disponible"]
[1214,"Mecoprop","Mecoprop","liste II","µg/l",null,"circulaire du 7 mai 2007",22,"pas de seuil disponible"]
[2084,"Mécoprop-P","Mécoprop-P","liste II","µg/l",null,"circulaire du 7 mai 2007",22,"pas de seuil disponible"]
[1387,"Mercure et composés","Mercure et composés","Substance Dangereuse Prioritaire","µg/l",null,"arrêté du 27 juillet 2015 - annexe 8","pas de seuil disponible",7.0000000000000007E-2]
[1796,"Métaldéhyde","Metaldéhyde","Etat écologique","µg/l",null,"arrêté du 27 juillet 2015",60.6,"pas de seuil disponible"]
[1670,"Métazachlore","Métazachlore","Etat écologique","µg/l",null,"arrêté du 27 juillet 2015",1.9E-2,"pas de seuil disponible"]
[1216,"Methabenzthiazuron","Methabenzthiazuron","-","µg/l",null,"SEQ Eau V2 (limite vert/jaune potentialité biologique)",8.4,"pas de seuil disponible"]
[1218,"Méthomyl","Méthomyl","-","µg/l",null,"SEQ Eau V2 (limite vert/jaune potentialité biologique)",0.3,"pas de seuil disponible"]
[1221,"Métolachlore","Métolachlore","-","µg/l",null,"SEQ Eau V2 (limite vert/jaune potentialité biologique)",2,"pas de seuil disponible"]
[1395,"Molybdène","Molybdène -- [+bruit de fond]","liste II","µg/l","+bruit de fond","circulaire du 7 mai 2007",6.7,"pas de seuil disponible"]
[1467,"Mono-Chlorobenzène","Mono-Chlorobenzène","liste II","µg/l",null,"Arrêté du 8 juillet 2010",32,"pas de seuil disponible"]
[1227,"Monolinuron","Monolinuron","liste II","µg/l",null,"circulaire du 7 mai 2007",1,"pas de seuil disponible"]
[1517,"Naphtalène","Naphtalène","Substance Prioritaire","µg/l",null,"arrêté du 27 juillet 2015 - annexe 8",2,130]
[1386,"Nickel","Nickel","Substance Prioritaire","µg/l","concentration biodisponible de la substance","arrêté du 27 juillet 2015 - annexe 8",4,34]
[1882,"Nicosulfuron","Nicosulfuron","Etat écologique","µg/l",null,"arrêté du 27 juillet 2015",3.5000000000000003E-2,"pas de seuil disponible"]
[1340,"Nitrates","nitrates","physico-chimie générale","µg/l",null,"arrêté du 27 juillet 2015",50000,"pas de seuil disponible"]
[1339,"Nitrite","Nitrite","physico-chimie générale","µg/l",null,"arrêté du 27 juillet 2015",300,"pas de seuil disponible"]
[1958,"Nonylphénols (4 -para-nonylphénol)","4 -para-nonylphénol -- [famille nonylphénols (seuil de la famille 0,3µg/l)]","Substance Dangereuse Prioritaire","µg/l","famille nonylphénols (seuil de la famille 0,3µg/l)","arrêté du 27 juillet 2015 - annexe 8",0.3,2]
[1669,"norfluzaron","norfluzaron","-","µg/l",null,"SEQ Eau V2 (limite vert/jaune potentialité biologique)",0.1,"pas de seuil disponible"]
[1959,"Octylphénols (para-tert-octylphénol)","para-tert-octylphénol -- [famille octylphénols (seuil de la famille 0,1µg/l)]","Substance Prioritaire","µg/l","famille octylphénols (seuil de la famille 0,1µg/l)","arrêté du 27 juillet 2015 - annexe 8",0.1,"pas de seuil disponible"]
[1433,"Orthophosphates (PO4---)","Orthophosphates (PO4---)","-","µg/l PO4",null,"arrêté du 27 juillet 2015",500,"pas de seuil disponible"]
[1667,"Oxadiazon","Oxadiazon","Etat écologique","µg/l",null,"arrêté du 27 juillet 2015",0.09,"pas de seuil disponible"]
[1666,"Oxadixyl","Oxadixyl","-","µg/l",null,"SEQ Eau V2 (limite vert/jaune potentialité biologique)",46,"pas de seuil disponible"]
[1770,"Oxyde de dibutylétain","Oxyde de dibutylétain","liste II","µg/l",null,"circulaire du 7 mai 2007",0.9,"pas de seuil disponible"]
[1773,"Oxyde de tributylétain","Oxyde de tributylétain","liste II","µg/l",null,"circulaire du 7 mai 2007",1.9E-2,"pas de seuil disponible"]
[1231,"Oxy-demeton-methyl","Oxy-demeton-methyl","liste II","µg/l",null,"circulaire du 7 mai 2007",0.6,"pas de seuil disponible"]
[1311,"oxygène dissous","oxygène dissous (mgO2/l)","physico-chimie générale","µg/l",null,"arrêté du 27 juillet 2015",6000,"pas de seuil disponible"]
[1522,"Paraquat","Paraquat","-","µg/l",null,"SEQ Eau V2 (limite vert/jaune potentialité biologique)",2,"pas de seuil disponible"]
[1232,"Parathion Ethyl","Parathion Ethyl","-","µg/l",null,"SEQ Eau V2 (limite vert/jaune potentialité biologique)",3.0000000000000001E-5,"pas de seuil disponible"]
[1233,"Parathion Méthyl","Parathion Méthyl","-","µg/l",null,"SEQ Eau V2 (limite vert/jaune potentialité biologique)",2E-3,"pas de seuil disponible"]
[1234,"Pendiméthaline","Pendiméthaline","Etat écologique","µg/l",null,"arrêté du 27 juillet 2015",0.02,"pas de seuil disponible"]
[1888,"Pentachlorobenzène","Pentachlorobenzène","Substance Dangereuse Prioritaire","µg/l",null,"arrêté du 27 juillet 2015 - annexe 8",7.0000000000000001E-3,"pas de seuil disponible"]
[1235,"Pentachlorophénol","Pentachlorophénol","Substance Prioritaire","µg/l",null,"arrêté du 27 juillet 2015 - annexe 8",0.4,1]
[5534,"Pesticides cyclodiènes","pesticides cyclodiènes (aldrine, dieldrine, endrine, isodrine)","autre polluant non prioritaire","µg/l",null,"arrêté du 27 juillet 2015 - annexe 8","Σ=0,01","pas de seuil disponible"]
[1524,"Phénanthrène","Phénanthrène","liste II","µg/l",null,"circulaire du 7 mai 2007",0.11,"pas de seuil disponible"]
[1847,"Phosphate de tributyle","Phosphate de tributyle","Etat écologique","µg/l",null,"arrêté du 27 juillet 2015",82,"pas de seuil disponible"]
[1350,"Phosphore total","Phosphore total","liste II","µg/l",null,"arrêté du 27 juillet 2015",200,"pas de seuil disponible"]
[1665,"Phoxime","Phoxime","liste II","µg/l",null,"circulaire du 7 mai 2007",5.0000000000000001E-4,"pas de seuil disponible"]
[1382,"Plomb","Plomb","Substance Prioritaire","µg/l","concentration biodisponible de la substance","arrêté du 27 juillet 2015 - annexe 8",1.2,14]
[1242,"Polychlorobiphényle 101","Polychlorobiphényle 101 -- [famille PCB (seuil de la famille 0,001 µg/l)]","-","µg/l","famille PCB (seuil de la famille 0,001 µg/l)","Arrêté du 8 juillet 2010","pas de seuil disponible","pas de seuil disponible"]
[1243,"Polychlorobiphényle 118","Polychlorobiphényle 118 -- [famille PCB (seuil de la famille 0,001 µg/l)]","-","µg/l","famille PCB (seuil de la famille 0,001 µg/l)","Arrêté du 8 juillet 2010","pas de seuil disponible","pas de seuil disponible"]
[1244,"Polychlorobiphényle 138","Polychlorobiphényle 138 -- [famille PCB (seuil de la famille 0,001 µg/l)]","-","µg/l","famille PCB (seuil de la famille 0,001 µg/l)","Arrêté du 8 juillet 2010","pas de seuil disponible","pas de seuil disponible"]
[1245,"Polychlorobiphényle 153","Polychlorobiphényle 153 -- [famille PCB (seuil de la famille 0,001 µg/l)]","-","µg/l","famille PCB (seuil de la famille 0,001 µg/l)","Arrêté du 8 juillet 2010","pas de seuil disponible","pas de seuil disponible"]
[1090,"Polychlorobiphényle 169","Polychlorobiphényle 169 -- [famille PCB (seuil de la famille 0,001 µg/l)]","-","µg/l","famille PCB (seuil de la famille 0,001 µg/l)","Arrêté du 8 juillet 2010","pas de seuil disponible","pas de seuil disponible"]
[1246,"Polychlorobiphényle 180","Polychlorobiphényle 180 -- [famille PCB (seuil de la famille 0,001 µg/l)]","-","µg/l","famille PCB (seuil de la famille 0,001 µg/l)","Arrêté du 8 juillet 2010","pas de seuil disponible","pas de seuil disponible"]
[1239,"Polychlorobiphényle 28","Polychlorobiphényle 28 -- [famille PCB (seuil de la famille 0,001 µg/l)]","-","µg/l","famille PCB (seuil de la famille 0,001 µg/l)","Arrêté du 8 juillet 2010","pas de seuil disponible","pas de seuil disponible"]
[1240,"Polychlorobiphényle 35","Polychlorobiphényle 35 -- [famille PCB (seuil de la famille 0,001 µg/l)]","-","µg/l","famille PCB (seuil de la famille 0,001 µg/l)","Arrêté du 8 juillet 2010","pas de seuil disponible","pas de seuil disponible"]
[1241,"Polychlorobiphényle 52","Polychlorobiphényle 52 -- [famille PCB (seuil de la famille 0,001 µg/l)]","-","µg/l","famille PCB (seuil de la famille 0,001 µg/l)","Arrêté du 8 juillet 2010","pas de seuil disponible","pas de seuil disponible"]
[1091,"Polychlorobiphényle 77","Polychlorobiphényle 77 -- [famille PCB (seuil de la famille 0,001 µg/l)]","-","µg/l","famille PCB (seuil de la famille 0,001 µg/l)","Arrêté du 8 juillet 2010","pas de seuil disponible","pas de seuil disponible"]
[1253,"Prochloraze","Prochloraze","-","µg/l",null,"SEQ Eau V2 (limite vert/jaune potentialité biologique)",0.1,"pas de seuil disponible"]
[1092,"Prosulfocarbe","Prosulfocarbe","-","µg/l",null,"SEQ Eau V2 (limite vert/jaune potentialité biologique)",0.1,"pas de seuil disponible"]
[1537,"Pyrène","Pyrène","liste II","µg/l",null,"circulaire du 7 mai 2007",2.4E-2,"pas de seuil disponible"]
[2028,"Quinoxyfène","Quinoxyfène","Substance Dangereuse Prioritaire","µg/l",null,"arrêté du 27 juillet 2015 - annexe 8",0.15,2.7]
[1385,"Sélénium","Sélénium -- [+ bruit de fond]","liste II","µg/l","+ bruit de fond","circulaire du 7 mai 2007",1,"pas de seuil disponible"]
[1771,"Sels de dibutylétain (autres que dichlorure de dibutylétain et oxyde de dibutylétain )","Sels de dibutylétain (autres que dichlorure de dibutylétain et oxyde de dibutylétain )","-","µg/l",null,"SEQ Eau V2 (limite vert/jaune potentialité biologique)",0.9,"pas de seuil disponible"]
[1263,"Simazine","Simazine","Substance Prioritaire","µg/l",null,"arrêté du 27 juillet 2015 - annexe 8",1,4]
[1338,"Sulfates","Sulfates - Classe 1 [<50mg CaCo3/l ]","Etat écologique","µg/l",null,"avis INERIS decembre 2019",28000,"pas de seuil disponible"]
[1338,"Sulfates","Sulfates - Classe 2 [>50mg CaCo3/l et =100 mg/l CaCO3/l ]","Etat écologique","µg/l",null,"avis INERIS décembre 2019",56000,"pas de seuil disponible"]
[1694,"Tébuconazole","Tébuconazole","Etat écologique","µg/l",null,"Arrêté du 27 juillet 2015",1,"pas de seuil disponible"]
[1268,"Terbuthylazine","Terbuthylazine","-","µg/l",null,"SEQ Eau V2 (limite vert/jaune potentialité biologique)",0.2,"pas de seuil disponible"]
[1269,"Terbutryne","Terbutryne","-","µg/l",null,"SEQ Eau V2 (limite vert/jaune potentialité biologique)",0.3,"pas de seuil disponible"]
[1272,"Tétrachloroéthylène","Tétrachloroéthylène","Liste I","µg/l",null,"arrêté du 27 juillet 2015 - annexe 8",10,"pas de seuil disponible"]
[1276,"Tétrachlorure de carbone","Tétrachlorure de carbone","Liste I","µg/l",null,"arrêté du 27 juillet 2015 - annexe 8",12,"pas de seuil disponible"]
[2555,"Thallium","Thallium -- [+bruit de fond]","liste II","µg/l","+bruit de fond","circulaire du 7 mai 2007",0.1,"pas de seuil disponible"]
[1713,"Thiabendazole","Thiabendazole","Etat écologique","µg/l",null,"arrêté du 27 juillet 2015",1.2,"pas de seuil disponible"]
[1373,"Titane","Titane -- [+bruit de fond]","liste II","µg/l","+bruit de fond","circulaire du 7 mai 2007",2,"pas de seuil disponible"]
[1278,"Toluène","Toluène","Etat écologique","µg/l",null,"arrêté du 27 juillet 2015",74,"pas de seuil disponible"]
[1630,"Trichlorobenzène 1,2,3","Trichlorobenzène 1,2,3 -- [famille trichlorobenzènes (seuil de la famille 0,4 µg/l)]","liste II",null,"famille trichlorobenzènes (seuil de la famille 0,4 µg/l)","circulaire du 7 mai 2007","pas de seuil disponible","pas de seuil disponible"]
[1283,"Trichlorobenzène-1,2,4","Trichlorobenzène-1,2,4 -- [famille trichlorobenzènes (seuil de la famille 0,4 µg/l)]","Substance Prioritaire",null,"famille trichlorobenzènes (seuil de la famille 0,4 µg/l)","Arrêté du 8 juillet 2010",0.4,"pas de seuil disponible"]
[1629,"Trichlorobenzène-1,3,5","Trichlorobenzène-1,3,5 -- [famille trichlorobenzènes (seuil de la famille 0,4 µg/l)]","liste II",null,"famille trichlorobenzènes (seuil de la famille 0,4 µg/l)","circulaire du 7 mai 2007","pas de seuil disponible","pas de seuil disponible"]
[1774,"Trichlorobenzènes total","Trichlorobenzènes total","Substance Prioritaire","µg/l",null,"arrêté du 27 juillet 2015 - annexe 8",0.4,"pas de seuil disponible"]
[1286,"Trichloroéthylène","Trichloroéthylène","Liste I","µg/l",null,"arrêté du 27 juillet 2015 - annexe 8",10,"pas de seuil disponible"]
[1643,"Trichlorophénol-2,3,5","Trichlorophénol-2,3,5","-","µg/l",null,"SEQ Eau V2 (limite vert/jaune potentialité biologique)",0.5,"pas de seuil disponible"]
[1642,"Trichlorophénol-2,3,6","Trichlorophénol-2,3,6","-","µg/l",null,"SEQ Eau V2 (limite vert/jaune potentialité biologique)",0.5,"pas de seuil disponible"]
[1548,"Trichlorophénol-2,4,5","Trichlorophénol-2,4,5","liste II","µg/l",null,"circulaire du 7 mai 2007",10,"pas de seuil disponible"]
[1549,"Trichlorophénol-2,4,6","Trichlorophénol-2,4,6","liste II","µg/l",null,"circulaire du 7 mai 2007",4.0999999999999996,"pas de seuil disponible"]
[1723,"Trichlorophénol-3,4,5","Trichlorophénol-3,4,5","-","µg/l",null,"SEQ Eau V2 (limite vert/jaune potentialité biologique)",0.5,"pas de seuil disponible"]
[1289,"Trifluraline","Trifluraline","Substance Prioritaire","µg/l",null,"arrêté du 27 juillet 2015 - annexe 8",0.03,"pas de seuil disponible"]
[1361,"Uranium","Uranium -- [+bruit de fond]","liste II","µg/l","+bruit de fond","circulaire du 7 mai 2007",0.3,"pas de seuil disponible"]
[1384,"Vanadium","Vanadium -- [+ bruit de fond]","liste II","µg/l","+ bruit de fond","circulaire du 7 mai 2007",0.8,"pas de seuil disponible"]
[1291,"VINCHLOZOLINE","VINCHLOZOLINE","-","µg/l",null,"SEQ Eau V2 (limite vert/jaune potentialité biologique)",4,"pas de seuil disponible"]
[1293,"Xylène méta","Xylène méta -- [famille xylènes (seuil de la famille 10 µg/l)]","liste II","µg/l","famille xylènes (seuil de la famille 10 µg/l)","Arrêté du 8 juillet 2010","pas de seuil disponible","pas de seuil disponible"]
[1292,"Xylène ortho","Xylène ortho -- [famille xylènes (seuil de la famille 10 µg/l)]","liste II","µg/l","famille xylènes (seuil de la famille 10 µg/l)","Arrêté du 8 juillet 2010","pas de seuil disponible","pas de seuil disponible"]
[1294,"Xylène para","Xylène para -- [famille xylènes (seuil de la famille 10 µg/l)]","liste II","µg/l","famille xylènes (seuil de la famille 10 µg/l)","Arrêté du 8 juillet 2010","pas de seuil disponible","pas de seuil disponible"]
[1780,"Xylènes TOTAL","Xylènes TOTAL","Etat écologique","µg/l",null,"arrêté du 27 juillet 2015",1,"pas de seuil disponible"]
[1383,"Zinc","Zinc","Etat écologique","µg/l",null,"arrêté du 27 juillet 2015",7.8,"pas de seuil disponible"]

{"sheet":"Données graphiques","index":3,"n_rows":14,"n_cols":8,"rows_kept":14,"cut":false,"hidden":true,"merged":[]}
[]
[null,null,{"$f":"'Diagnostic simple'!B9&\" (µg/L)\"","v":"Sélectionner un paramètre (µg/L)"},{"$f":"'Diagnostic simple'!C9&\" (µg/L)\"","v":" (µg/L)"},"NQE-MA (µg/L)","NQE-CMA (µg/L)","Seuil de sécurité (80% de la NQE)","Seuil de sécurité (80% de la NQE)"]
[null,"amont",{"$f":"'Diagnostic simple'!C34","v":0},{"$f":"'Diagnostic simple'!C34","v":0},{"$f":"'Diagnostic simple'!$C$22","v":0},{"$f":"'Diagnostic simple'!$C$23","v":0},{"$f":"E3*0.8","v":0},{"$f":"F3*0.8","v":0}]
[null,"avant rejet",{"$f":"C3","v":0},{"$f":"D3","v":0},{"$f":"'Diagnostic simple'!$C$22","v":0},{"$f":"'Diagnostic simple'!$C$23","v":0},{"$f":"E4*0.8","v":0},{"$f":"F4*0.8","v":0}]
[null,"après rejet",{"$f":"('Diagnostic simple'!$C$31*'Diagnostic simple'!$C$34+'Diagnostic simple'!$C$11/3600*'Diagnostic simple'!$C$14)/('Diagnostic simple'!$C$31+'Diagnostic simple'!$C$11/3600)","v":{"$error":"#DIV/0!"}},{"$f":"'Diagnostic simple'!C41","v":{"$error":"#DIV/0!"}},{"$f":"'Diagnostic simple'!$C$22","v":0},{"$f":"'Diagnostic simple'!$C$23","v":0},{"$f":"E5*0.8","v":0},0]
[null,"aval",{"$f":"C5","v":{"$error":"#DIV/0!"}},{"$f":"D5","v":{"$error":"#DIV/0!"}},{"$f":"'Diagnostic simple'!$C$22","v":0},{"$f":"'Diagnostic simple'!$C$23","v":0},{"$f":"E6*0.8","v":0},0]
[]
[]
[]
[]
[]
[null,null,null,null,"FMA","Rejet","% du FMA","% alerte FMA"]
[null,null,null,"Situation moyenne",{"$f":"'Diagnostic simple'!C35","v":0},{"$f":"'Diagnostic simple'!C16","v":0},{"$f":"F13/E13*100","v":{"$error":"#DIV/0!"}},80]
[null,null,null,"Situation maximale",{"$f":"'Diagnostic simple'!C36","v":0},{"$f":"'Diagnostic simple'!C17","v":0},{"$f":"F14/E14*100","v":{"$error":"#DIV/0!"}},80]

{"sheet":"Diagnostic simple","index":4,"n_rows":82,"n_cols":5,"rows_kept":82,"cut":false,"hidden":false,"merged":[[8,1,8,2],[81,1,81,2],[3,1,3,4],[1,1,1,4]]}
[]
[null,"Evaluation de l'impact d'un rejet polluant sur le milieu récepteur au regard des normes de qualité environnementales (NQE)"]
[]
[null,"Avertissement\n* outil donné à titre d'information ne pouvant être utilisé à des fins de justification.\n* Si la substance rejetée est identifiée comme substance dangereuse prioritaire au titre de la DCE, le rejet devra à terme être nul.\n* Au-delà du résultat fourni, il convient de vérifier la qualité effective du milieu récepteur sur le polluant considéré pour vérifier l'impact réel de la charge émise par l'établissement."]
[]
[null,"Connaissance du rejet industriel"]
[]
[null,"choix du paramètre polluant :"]
[null,"Sélectionner un paramètre"]
[]
[null,"débit moyen du rejet industriel en m3/h"]
[null,"débit maximal du rejet industriel en m3/h"]
[]
[null,"concentration du polluant dans le rejet industriel en µg/L"]
[]
[null,"flux industriel moyen en g/j",{"$f":"$C$11*$C$14*24/1000","v":0}]
[null,"flux industriel maximal en g/j",{"$f":"$C$12*$C$14*24/1000","v":0}]
[]
[]
[null,"Connaissance du milieu naturel"]
[]
[null,"Norme de qualité environnementale moyenne annuelle en µg/L (NQE-MA)",{"$f":"IF($B$9=\"\",\"\",VLOOKUP($B$9,NQE!$C$2:$H$260,6,0))","v":0}]
[null,"Norme de qualité environnementale maximale annuelle en µg/L (NQE-CMA)",{"$f":"IF($B$9=\"\",\"\",VLOOKUP($B$9,NQE!$C$2:$I$261,7,0))","v":0}]
[]
[null,"origine de la NQE :"]
[null,{"$f":"IF($B$9=\"\",\"\",VLOOKUP($B$9,NQE!$C$2:$H$261,5,0))","v":0}]
[]
[null,"type de substance"]
[null,{"$f":"IF($B$9=\"\",\"\",VLOOKUP($B$9,NQE!$C$2:$H$261,2,0))","v":0}]
[]
[null,"débit QMNA5 (en m3/s)",null,null,"Base de données hydro.eaufrance"]
[null,null,null,null,"Catalogue des débits d'étiage Rhin Meuse"]
[]
[null,"concentration en amont mesurée ou estimée en µg/L",null,null,"SIE Rhin Meuse"]
[null,"flux théorique admissible en g/j (situation moyenne)",{"$f":"IF(C22/1000*($C$31*86400+$C$11)-(C34/1000*$C$31*86400)<0,\"pas de rejet possible\",C22/1000*($C$31*86400+$C$11)-(C34/1000*$C$31*86400))","v":0}]
[null,"flux théorique admissible en g/j (situation maximale)",{"$f":"IF(ISTEXT(NQE_CMA),\"\",IF(C23/1000*($C$31*86400+$C$12)-(C34/1000*$C$31*86400)<0,\"pas de rejet possible\",C23/1000*($C$31*86400+$C$12)-(C34/1000*$C$31*86400)))","v":0}]
[]
[]
[]
[null,"concentration en aval du rejet en µg/L (rejet moyen)",{"$f":"($C$31*$C$34+$C$11/3600*$C$14)/($C$31+$C$11/3600)","v":{"$error":"#DIV/0!"}},null,{"$f":"IF(ISNUMBER(C22),IF(OR(C11=\"\",C14=\"\"),\"saisir caractéristiques du rejet\",IF(OR(C31=\"\",C34=\"\"),\"saisir caractéristiques du milieu\",IF(C22*0.8<C40,\"seuil d'alerte dépassé\",\"rejet acceptable\"))),\"impact non calculé\")","v":"saisir caractéristiques du rejet"}]
[null,"concentration en aval du rejet en µg/L (rejet maximal)",{"$f":"($C$31*$C$34+$C$12/3600*$C$14)/($C$31+$C$12/3600)","v":{"$error":"#DIV/0!"}},null,{"$f":"IF(ISNUMBER(C23),IF(OR(C12=\"\",C14=\"\"),\"saisir caractéristiques du rejet\",IF(OR(C31=\"\",C34=\"\"),\"saisir caractéristiques du milieu\",IF(C23*0.8<C41,\"seuil d'alerte dépassé\",\"rejet acceptable\"))),\"impact non calculé\")","v":"saisir caractéristiques du rejet"}]
[]
[]
[]
[]
[]
[]
[]
[]
[]
[]
[]
[null,"FMA",{"$f":"IF(ISNUMBER(C22),C31*C22*86400/1000,\"\")","v":0}]
[null,"% du flux industriel sur le FMA",{"$f":"IF(C53<>\"\",C17/C53,\"\")","v":{"$error":"#DIV/0!"}}]
[]
[]
[]
[]
[]
[]
[]
[]
[]
[]
[]
[]
[]
[]
[]
[]
[]
[]
[]
[]
[]
[]
[]
[]
[]
[]
[]
[null,"Une concentration dans le milieu après rejet supérieure à  80% de la NQE ou un rejet supérieur à 10% du flux milieu admissible doivent alerter et permettre de détecter les situations qui méritent d'être approfondies\n"]

{"sheet":"Tableau multi-paramètres","index":5,"n_rows":13,"n_cols":22,"rows_kept":13,"cut":false,"hidden":false,"merged":[[2,0,2,20],[11,3,11,10],[11,11,11,18],[11,19,11,20]]}
[]
[]
["Evaluation de l'impact local d'un rejet polluant sur le milieu récepteur au regard des normes de qualité environnementales (NQE)"]
["Tableau multi-paramètres"]
[]
["Débit d'étiage du milieu en amont du rejet (QMNA1/5) en m3/s",null,{"$f":"\"soit \"&B6*3600*24&\" m3/j\"","v":"soit 0 m3/j"},null,null,null,"diagnostic concentration","diagnostic flux","diagnostic rejet moyen","diagnostic concentration","diagnostic flux","diagnostic rejet max",null,null,null,null,null,null,"Base de données hydro.eaufrance"]
["Débit du rejet moyen mensuel en m3/j",null,null,null,null,null,{"$f":"VLOOKUP(IF(D10<0.1*H10,1,IF(D10<0.8*H10,2,IF(D10>H10,4,3))),'Matrice réponse'!$A$21:$B$24,2,0)","v":{"$error":"#VALUE!"}},{"$f":"VLOOKUP(IF(G10<10%,1,IF(G10<80%,2,3)),'Matrice réponse'!$A$32:$B$34,2,0)","v":"Flux rejet moyen > 80% du flux théorique admissible"},{"$f":"VLOOKUP(MAX(IF(D10<0.1*H10,1,IF(D10<0.8*H10,2,IF(D10>H10,4,3))),IF(G10<10%,1,IF(G10<80%,2,3))),'Matrice réponse'!$B$6:$C$9,2,0)","v":{"$error":"#VALUE!"}},{"$f":"VLOOKUP(IF(L10<0.1*P10,1,IF(L10<0.8*P10,2,IF(L10>P10,4,3))),'Matrice réponse'!$A$21:$B$24,2,0)","v":{"$error":"#VALUE!"}},{"$f":"VLOOKUP(IF(O10<10%,1,IF(O10<80%,2,3)),'Matrice réponse'!$A$38:$B$40,2,0)","v":"Flux rejet max > 80% du flux théorique admissible"},{"$f":"VLOOKUP(MAX(IF(L10<0.1*P10,1,IF(L10<0.8*P10,2,IF(L10>P10,4,3))),IF(O10<10%,1,IF(O10<80%,2,3))),'Matrice réponse'!$B$6:$C$9,2,0)","v":{"$error":"#VALUE!"}},null,null,null,null,null,null,"Catalogue des débits d'étiage Rhin Meuse"]
["Débit maximal du rejet en m3/j",null,null,null,null,null,null,null,null,null,null,null,null,null,null,null,null,null,"SIE Rhin Meuse"]
[]
[null,0,0,{"$f":"IF(A10=\"\",\"\",($B$6*86400*C10+B10*$B$7)/($B$6*86400+$B$7))","v":""},{"$f":"B10*$B$7/1000","v":0},{"$f":"IF(ISTEXT(H10),\"\",IF(H10/1000*($B$6*86400+$B$7)-(C10/1000*$B$6*86400)<=0,\"pas de rejet possible\",H10/1000*($B$6*86400+$B$7)-(C10/1000*$B$6*86400)))","v":""},{"$f":"IF(ISNUMBER(F10)=FALSE,\"\",E10/F10)","v":""},{"$f":"IF($A10=\"\",\"\",VLOOKUP($A10,NQE!$C$2:$H$261,6,0))","v":""},{"$f":"IF(ISTEXT(H10),\"\",IF(D10<0.1*H10,1,IF(D10<0.8*H10,2,IF(D10>H10,4,3))))","v":""},{"$f":"IF(ISTEXT(H10),\"\",IF(G10<10%,1,IF(G10<80%,2,3)))","v":""},{"$f":"IF(ISTEXT(H10),\"impact non calculé\",VLOOKUP(MAX(IF(D10<0.1*H10,1,IF(D10<0.8*H10,2,IF(D10>H10,4,3))),IF(G10<10%,1,IF(G10<80%,2,3))),'Matrice réponse'!$B$6:$C$9,2,0))","v":"impact non calculé"},{"$f":"IF(A10=\"\",\"\",($B$6*86400*C10+B10*$B$8)/($B$6*86400+$B$8))","v":""},{"$f":"B10*$B$8/1000","v":0},{"$f":"IF(ISTEXT(P10),\"\",IF(P10/1000*($B$6*86400+$B$8)-(C10/1000*$B$6*86400)<=0,\"pas de rejet possible\",P10/1000*($B$6*86400+$B$8)-(C10/1000*$B$6*86400)))","v":""},{"$f":"IF(ISNUMBER(N10)=FALSE,\"\",M10/N10)","v":""},{"$f":"IF($A10=\"\",\"\",VLOOKUP($A10,NQE!$C$2:$I$261,7,0))","v":""},{"$f":"IF(ISTEXT(P10),\"\",IF(L10<0.1*P10,1,IF(L10<0.8*P10,2,IF(L10>P10,4,3))))","v":""},{"$f":"IF(ISTEXT(P10),\"\",IF(O10<10%,1,IF(O10<80%,2,3)))","v":""},{"$f":"IF(ISTEXT(P10),\"impact non calculé\",VLOOKUP(MAX(IF(L10<0.1*P10,1,IF(L10<0.8*P10,2,IF(L10>P10,4,3))),IF(O10<10%,1,IF(O10<80%,2,3))),'Matrice réponse'!$B$6:$C$9,2,0))","v":"impact non calculé"},{"$f":"IF($A10=\"\",\"\",VLOOKUP($A10,NQE!$C$2:$H$261,5,0))","v":""},{"$f":"IF($A10=\"\",\"\",VLOOKUP($A10,NQE!$C$2:$H$261,2,0))","v":""},{"$f":"MAX(IF(D10<0.1*H10,1,IF(D10<0.8*H10,2,IF(D10>H10,4,3))),IF(G10<10%,1,IF(G10<80%,2,3)),IF(ISTEXT(P10),1,IF(L10<0.1*P10,1,IF(L10<0.8*P10,2,IF(L10>P10,4,3)))),IF(ISTEXT(P10),1,IF(O10<10%,1,IF(O10<80%,2,3))))","v":{"$error":"#VALUE!"}}]
[]
[null,null,null,"Impact rejet moyen",null,null,null,null,null,null,null,"Impact rejet max",null,null,null,null,null,null,null,"Information substance"]
["Paramètre","Concentration du  rejet (µg/L)","Concentration dans le milieu en amont du rejet (µg/L)","Concentration estimée dans le milieu en aval du rejet (µg/L)","Flux émis (g/j)","Flux admissible (g/j)","Ratio flux émis / flux admissible","NQE-MA (µg/L)","diag conc","diag flux","diagnostic rejet moyen","Concentration estimée dans le milieu en aval du rejet (µg/L)","Flux émis (g/j)","Flux admissible (g/j)","Ratio flux émis / flux admissible","NQE-CMA (µg/L)","diag conc","diag flux","diagnostic rejet max","Origine de la NQE","Type de substance","Synthèse numérique impact"]

{"sheet":"Source NQE & VGE","index":6,"n_rows":159,"n_cols":12,"rows_kept":159,"cut":false,"hidden":false,"merged":[[155,11,156,11],[157,0,158,0],[157,1,158,1],[157,2,158,2],[157,3,158,3],[157,4,158,4],[157,5,158,5],[157,10,158,10],[157,11,158,11],[8,0,8,2],[8,3,8,9],[8,10,8,11],[155,0,156,0],[155,1,156,1],[155,2,156,2],[155,3,156,3],[155,4,156,4],[155,5,156,5],[155,10,156,10],[0,0,0,1],[1,0,1,1],[2,0,2,1],[3,0,3,1],[4,0,4,1],[5,0,5,1]]}
["Légende"]
["CAS :  Chemical   Abstracts   Service"]
["NQE : Norme de Qualité Environmentale"]
["VGE : Valeur Guide Environmentale"]
["MA: moyenne annuelle"]
["CMA: concentration maximale admissible"]
[]
[]
["Substance",null,null,"Valeur de référence",null,null,null,null,null,null,"Limite analytique"]
["CAS","Nom","Code\nSANDRE","Nature de la valeur réglementaire","Texte de référence pour la NQE","Classement","Concentration Moyenne Annuelle (NQE-MA) - Eaux de surface intérieures (µg/L)","Concentration Moyenne Annuelle (NQE-MA) - eaux de surface côtières et de transition (µg/L)","Concentration Maximale Admissible (NQE-CMA) - Eaux de surface intérieures (µg/L)","Concentration Maximale Admissible (NQE-CMA) – eaux de surface côtières et de transition (µg/L)","Texte de référence","LQ « eau résiduaire »"]
["15972-60-8","Alachlore",1101,"NQE","Arrêté du 25 janvier 2010","SP",0.3,0.3,0.7,0.7,"Avis 19/10/2019","0,02 µg/l"]
[{"$error":"#N/A"},"Anthracène",1458,"NQE","Arrêté du 25 janvier 2010","SDP",0.1,0.1,0.1,0.1,"Avis 19/10/2019","0,01 µg/l"]
["1912-24-9","Atrazine",1107,"NQE","Arrêté du 25 janvier 2010","SP",0.6,0.6,2,2,"Avis 19/10/2019","0,03 µg/l"]
["71-43-2","Benzène",1114,"NQE","Arrêté du 25 janvier 2010","SP",10,8,50,50,"Avis 19/10/2019","1 µg/l"]
["sans objet","Diphényléthers bromés - sum of BDEs (Hexa BDE 154, Hexa BDE 153, Penta BDE 100, Penta BDE 99, Tétra BDE 47, Tri BDE 28)","/","NQE","Arrêté du 25 janvier 2010","SDP","0,0085 (µg/kg biote)","0,0085 (µg/kg biote)",0.14000000000000001,1.4E-2,"Avis 19/10/2019","0,02 µg/l"]
["68631-49-2","Hexa BDE 153",2912,"NQE","Arrêté du 25 janvier 2010","SDP","cf. sum of BDEs","cf. sum of BDEs","cf. sum of BDEs","cf. sum of BDEs","Avis 19/10/2019","0,02 µg/l"]
["207122-15-4","Hexa BDE 154",2911,"NQE","Arrêté du 25 janvier 2010","SDP","cf. sum of BDEs","cf. sum of BDEs","cf. sum of BDEs","cf. sum of BDEs","Avis 19/10/2019","0,02 µg/l"]
["189084-64-8","Penta BDE 100",2915,"NQE","Arrêté du 25 janvier 2010","SDP","cf. sum of BDEs","cf. sum of BDEs","cf. sum of BDEs","cf. sum of BDEs","Avis 19/10/2019","0,02 µg/l"]
["60348-60-9","Penta BDE 99",2916,"NQE","Arrêté du 25 janvier 2010","SDP","cf. sum of BDEs","cf. sum of BDEs","cf. sum of BDEs","cf. sum of BDEs","Avis 19/10/2019","0,02 µg/l"]
["32534-81-9","Pentabromodiphényléther",1921,"NQE","Arrêté du 25 janvier 2010","SDP","cf. sum of BDEs","cf. sum of BDEs","cf. sum of BDEs","cf. sum of BDEs","Avis 19/10/2019","0,1 µg/l"]
["5436-43-1","Tétra BDE 47",2919,"NQE","Arrêté du 25 janvier 2010","SDP","cf. sum of BDEs","cf. sum of BDEs","cf. sum of BDEs","cf. sum of BDEs","Avis 19/10/2019","0,02 µg/l"]
["41318-75-6","Tri BDE 28",2920,"NQE","Arrêté du 25 janvier 2010","SP","cf. sum of BDEs","cf. sum of BDEs","cf. sum of BDEs","cf. sum of BDEs","Avis 19/10/2019","0,02 µg/l"]
["7440-43-9","Cadmium et composés",1388,"NQE","Arrêté du 25 janvier 2010","SDP","≤ 0,08 (Classe 1)\n0,08 (Classe 2)\n0,09 (Classe 3)\n0,15 (Classe 4)\n0,25 (Classe 5)",0.2,"≤ 0,45 (Classe 1)\n0,45 (Classe 2)\n0,6 (Classe 3)\n0,9 (Classe 4)\n1,5 (Classe 5)","≤ 0,45 (Classe 1)\n0,45 (Classe 2)\n0,6 (Classe 3)\n0,9 (Classe 4)\n1,5 (Classe 5)","Avis 19/10/2019","1 µg/l"]
["85535-84-8","C10-13-chloroalcanes",1955,"NQE","Arrêté du 25 janvier 2010","SDP",0.4,0.4,1.4,1.4,"Avis 19/10/2019","5 µg/l"]
["470-90-6","Chlorfenvinphos",1464,"NQE","Arrêté du 25 janvier 2010","SP",0.1,0.1,0.3,0.3,"Avis 19/10/2019","0,05 µg/l"]
["2921-88-2","Chlorpyriphos-Ethyl",1083,"NQE","Arrêté du 25 janvier 2010","SP",0.03,0.03,0.1,0.1,"Avis 19/10/2019","0,02 µg/l"]
[{"$error":"#N/A"},"Dichloroéthane-1,2",1161,"NQE","Arrêté du 25 janvier 2010","SP",10,10,"Pas de valeur","Pas de valeur","Avis 19/10/2019","2 µg/l"]
["1975-09-02","Dichlorométhane",1168,"NQE","Arrêté du 25 janvier 2010","SP",20,20,"Pas de valeur","Pas de valeur","Avis 19/10/2019","5 µg/l"]
["117-81-7","Di(2-éthylhexyl)phtalate (DEHP)",1461,"NQE","Arrêté du 25 janvier 2010","SDP",1.3,1.3,"Pas de valeur","Pas de valeur","Avis 19/10/2019","0,01 µg/l"]
["330-54-1","Diuron",1177,"NQE","Arrêté du 25 janvier 2010","SP",0.2,0.2,1.8,1.8,"Avis 19/10/2019","0,05 µg/l"]
["115-29-7","Endosulfan",1743,"NQE","Arrêté du 25 janvier 2010","SDP",5.0000000000000001E-3,5.0000000000000001E-4,0.01,4.0000000000000001E-3,"Avis 19/10/2019","0,1 µg/l"]
[{"$error":"#N/A"},"Endosulfan sulfate",1742,"NQE","Arrêté du 25 janvier 2010","SDP",5.0000000000000001E-3,5.0000000000000001E-4,0.01,4.0000000000000001E-3,"Avis 19/10/2019","0,1 µg/l"]
["206-44-0","Fluoranthène",1191,"NQE","Arrêté du 25 janvier 2010","SP",6.3E-3,6.3000000000000003E-4,0.12,0.12,"Avis 19/10/2019","0,01 µg/l"]
["118-74-1","Hexachlorobenzène",1199,"NQE","Arrêté du 25 janvier 2010","SDP","10  (µg/kg biote)","10  (µg/kg biote)",0.05,0.05,"Avis 19/10/2019","0,01 µg/l"]
["87-68-3","Hexachlorobutadiène",1652,"NQE","Arrêté du 25 janvier 2010","SDP","55  (µg/kg biote)","55  (µg/kg biote)",0.6,0.6,"Avis 19/10/2019","0,5 µg/l"]
["608-73-1","Hexachlorocyclohéxane (tous les isomères, y compris lindane)",5537,"NQE","Arrêté du 25 janvier 2010","SDP",0.02,2E-3,0.04,0.02,"Avis 19/10/2019","0,1 µg/l"]
["319-84-6","Hexachlorocyclohexane alpha",1200,"NQE","Arrêté du 25 janvier 2010","SDP","cf. commercial mixture","cf. commercial mixture","cf. commercial mixture","cf. commercial mixture","Avis 19/10/2019","0,02 µg/l"]
["319-85-7","Hexachlorocyclohexane bêta",1201,"NQE","Arrêté du 25 janvier 2010","SDP","cf. commercial mixture","cf. commercial mixture","cf. commercial mixture","cf. commercial mixture","Avis 19/10/2019","0,02 µg/l"]
["319-86-8","Hexachlorocyclohexane delta",1202,"NQE","Arrêté du 25 janvier 2010","SDP","cf. commercial mixture","cf. commercial mixture","cf. commercial mixture","cf. commercial mixture","Avis 19/10/2019","0,02 µg/l"]
["58-89-9","Lindane",1203,"NQE","Arrêté du 25 janvier 2010","SDP","cf. commercial mixture","cf. commercial mixture","cf. commercial mixture","cf. commercial mixture","Avis 19/10/2019","0,02 µg/l"]
["34123-59-6","Isoproturon",1208,"NQE","Arrêté du 25 janvier 2010","SP",0.3,0.3,1,1,"Avis 19/10/2019","0,05 µg/l"]
["7439-92-1","Plomb",1382,"NQE","Arrêté du 25 janvier 2010","SP",1.2,1.3,14,14,"Avis 19/10/2019","2 µg/l"]
["7439-97-6","Mercure et composés",1387,"NQE","Arrêté du 25 janvier 2010","SDP","20  (µg/kg biote)","20  (µg/kg biote)",7.0000000000000007E-2,7.0000000000000007E-2,"Avis 19/10/2019","0,2 µg/l"]
["91-20-3","Naphtalène",1517,"NQE","Arrêté du 25 janvier 2010","SP",2,2,130,130,"Avis 19/10/2019","0,05 µg/l"]
["7440-02-0","Nickel",1386,"NQE","Arrêté du 25 janvier 2010","SP",4,8.6,34,34,"Avis 19/10/2019","5 µg/l"]
["84852-15-3","Nonylphénol-4 (ramifié)",1958,"NQE","Arrêté du 25 janvier 2010","SDP",0.3,0.3,2,2,"Avis 19/10/2019","0,5 µg/l"]
["104-40-5","Nonylphénol-4-(para)-",5474,"NQE","Arrêté du 25 janvier 2010","SDP",0.3,0.3,2,2,"Avis 19/10/2019","0,05 µg/l"]
["25154-52-3","Nonylphénols",1957,"NQE","Arrêté du 25 janvier 2010","SDP",0.3,0.3,2,2,"Avis 19/10/2019","5 µg/l"]
["140-66-9","Octylphénol-para-tert-",1959,"NQE","Arrêté du 25 janvier 2010","SP",0.1,0.01,"Pas de valeur","Pas de valeur","Avis 19/10/2019","0,1 µg/l"]
["1806-26-4","Octylphénols",1920,"NQE","Arrêté du 25 janvier 2010","SP",0.1,0.01,"Pas de valeur","Pas de valeur","Avis 19/10/2019","0,1 µg/l"]
["608-93-5","Pentachlorobenzène",1888,"NQE","Arrêté du 25 janvier 2010","SDP",7.0000000000000001E-3,6.9999999999999999E-4,"Pas de valeur","Pas de valeur","Avis 19/10/2019","0,01 µg/l"]
["87-86-5","Pentachlorophénol",1235,"NQE","Arrêté du 25 janvier 2010","SP",0.4,0.4,1,1,"Avis 19/10/2019","0,1 µg/l"]
["50-32-8","Benzo(a)pyrene",1115,"NQE","Arrêté du 25 janvier 2010","SDP",1.7000000000000001E-4,1.7000000000000001E-4,0.27,2.7E-2,"Avis 19/10/2019","0,01 µg/l"]
["205-99-2","Benzo(b)fluoranthene",1116,"NQE","Arrêté du 25 janvier 2010","SDP","cf. remarque","cf. remarque",1.7000000000000001E-2,1.7000000000000001E-2,"Avis 19/10/2019","0,005 µg/l"]
["191-24-2","Benzo(g,h,i)perylene",1118,"NQE","Arrêté du 25 janvier 2010","SDP","cf. remarque","cf. remarque",8.2000000000000007E-3,8.1999999999999998E-4,"Avis 19/10/2019","0,005 µg/l"]
[{"$error":"#N/A"},"Benzo(k)fluoranthene",1117,"NQE","Arrêté du 25 janvier 2010","SDP","cf. remarque","cf. remarque",1.7000000000000001E-2,1.7000000000000001E-2,"Avis 19/10/2019","0,005 µg/l"]
["noCAS","Hydrocarbures Aromatiques Polycycliques (HAP)","/","NQE","Arrêté du 25 janvier 2010","SDP","cf. specific PAHs","cf. specific PAHs","cf. specific PAHs","cf. specific PAHs","Avis 19/10/2019"]
["193-39-5","Indeno(1,2,3-cd)pyrene",1204,"NQE","Arrêté du 25 janvier 2010","SDP","cf. remarque","cf. remarque","Pas de valeur","Pas de valeur","Avis 19/10/2019","0,005 µg/l"]
["122-34-9","Simazine",1263,"NQE","Arrêté du 25 janvier 2010","SP",1,1,4,4,"Avis 19/10/2019","0,03 µg/l"]
["688-73-3","Composés du tributylétain",2879,"NQE","Arrêté du 25 janvier 2010","SDP",2.0000000000000001E-4,2.0000000000000001E-4,1.5E-3,1.5E-3,"Avis 19/10/2019","0,02 µg/l"]
["56-35-9","Oxyde de tributylétain",1773,"NQE","Arrêté du 25 janvier 2010","SDP",2.0000000000000001E-4,2.0000000000000001E-4,1.5E-3,1.5E-3,"Avis 19/10/2019","0,01 µg/l"]
["36643-28-4","Tributylétain cation",1820,"NQE","Arrêté du 25 janvier 2010","SDP",2.0000000000000001E-4,2.0000000000000001E-4,1.5E-3,1.5E-3,"Avis 19/10/2019","0,05 µg/l"]
["12002-48-1","Trichlorobenzène",1630,"NQE","Arrêté du 25 janvier 2010","SP",0.4,0.4,"Pas de valeur","Pas de valeur","Avis 19/10/2019","0,2 µg/l"]
["67-66-3","Chloroforme",1135,"NQE","Arrêté du 25 janvier 2010","SP",2.5,2.5,"Pas de valeur","Pas de valeur","Avis 19/10/2019","0,1 µg/l"]
[{"$error":"#N/A"},"Trifluraline",1289,"NQE","Arrêté du 25 janvier 2010","SDP",0.03,0.03,"Pas de valeur","Pas de valeur","Avis 19/10/2019","0,01 µg/l"]
["115-32-2","Dicofol",1172,"NQE","Arrêté du 27 juillet 2015","SDP",1.2999999999999999E-3,3.1999999999999999E-5,"Pas de valeur","Pas de valeur","Avis 19/10/2019","0,05 µg/l"]
["1763-23-1","Acide perfluoro sulfoné (PFOA) et ses dérivés (PFOS)",6560,"NQE","Arrêté du 27 juillet 2015","SDP",6.4999999999999997E-4,1.2999999999999999E-4,36,7.2,"Avis 19/10/2019","10 mg/l"]
["124495-18-7","Quinoxyfen",2028,"NQE","Arrêté du 27 juillet 2015","SDP",0.15,1.4999999999999999E-2,2.7,0.54,"Avis 19/10/2019","0,1 µg/l"]
[{"$error":"#N/A"},"2,3,7,8-T4CDD",2562,"NQE","Arrêté du 27 juillet 2015","SDP","cf. Dioxins and dioxin-like compounds","cf. Dioxins and dioxin-like compounds","cf. Dioxins and dioxin-like compounds","cf. Dioxins and dioxin-like compounds","Avis 19/10/2019","0,02 µg/l"]
["3268-87-9","1,2,3,4,6,7,8,9-O8CDD",2566,"NQE","Arrêté du 27 juillet 2015","SDP","cf. Dioxins and dioxin-like compounds","cf. Dioxins and dioxin-like compounds","cf. Dioxins and dioxin-like compounds","cf. Dioxins and dioxin-like compounds","Avis 19/10/2019","0,02 µg/l"]
["39001-02-0","1,2,3,4,6,7,8,9-O8CDF","/","NQE","Arrêté du 27 juillet 2015","SDP","cf. Dioxins and dioxin-like compounds","cf. Dioxins and dioxin-like compounds","cf. Dioxins and dioxin-like compounds","cf. Dioxins and dioxin-like compounds","Avis 19/10/2019"]
["35822-46-9","1,2,3,4,6,7,8-H7CDD",2575,"NQE","Arrêté du 27 juillet 2015","SDP","cf. Dioxins and dioxin-like compounds","cf. Dioxins and dioxin-like compounds","cf. Dioxins and dioxin-like compounds","cf. Dioxins and dioxin-like compounds","Avis 19/10/2019","0,02 µg/l"]
["67562-39-4","1,2,3,4,6,7,8-H7CDF",2596,"NQE","Arrêté du 27 juillet 2015","SDP","cf. Dioxins and dioxin-like compounds","cf. Dioxins and dioxin-like compounds","cf. Dioxins and dioxin-like compounds","cf. Dioxins and dioxin-like compounds","Avis 19/10/2019","0,02 µg/l"]
["55673-89-7","1,2,3,4,7,8,9-H7CDF",2597,"NQE","Arrêté du 27 juillet 2015","SDP","cf. Dioxins and dioxin-like compounds","cf. Dioxins and dioxin-like compounds","cf. Dioxins and dioxin-like compounds","cf. Dioxins and dioxin-like compounds","Avis 19/10/2019","0,02 µg/l"]
["39227-28-6","1,2,3,4,7,8-H6CDD",2571,"NQE","Arrêté du 27 juillet 2015","SDP","cf. Dioxins and dioxin-like compounds","cf. Dioxins and dioxin-like compounds","cf. Dioxins and dioxin-like compounds","cf. Dioxins and dioxin-like compounds","Avis 19/10/2019","0,02 µg/l"]
["70648-26-9","1,2,3,4,7,8-H6CDF",2591,"NQE","Arrêté du 27 juillet 2015","SDP","cf. Dioxins and dioxin-like compounds","cf. Dioxins and dioxin-like compounds","cf. Dioxins and dioxin-like compounds","cf. Dioxins and dioxin-like compounds","Avis 19/10/2019","0,02 µg/l"]
["57653-85-7","1,2,3,6,7,8-H6CDD",2572,"NQE","Arrêté du 27 juillet 2015","SDP","cf. Dioxins and dioxin-like compounds","cf. Dioxins and dioxin-like compounds","cf. Dioxins and dioxin-like compounds","cf. Dioxins and dioxin-like compounds","Avis 19/10/2019","0,02 µg/l"]
["57117-44-9","1,2,3,6,7,8-H6CDF",2592,"NQE","Arrêté du 27 juillet 2015","SDP","cf. Dioxins and dioxin-like compounds","cf. Dioxins and dioxin-like compounds","cf. Dioxins and dioxin-like compounds","cf. Dioxins and dioxin-like compounds","Avis 19/10/2019","0,02 µg/l"]
["19408-74-3","1,2,3,7,8,9-H6CDD",2573,"NQE","Arrêté du 27 juillet 2015","SDP","cf. Dioxins and dioxin-like compounds","cf. Dioxins and dioxin-like compounds","cf. Dioxins and dioxin-like compounds","cf. Dioxins and dioxin-like compounds","Avis 19/10/2019","0,02 µg/l"]
["72918-21-9","1,2,3,7,8,9-H6CDF",2594,"NQE","Arrêté du 27 juillet 2015","SDP","cf. Dioxins and dioxin-like compounds","cf. Dioxins and dioxin-like compounds","cf. Dioxins and dioxin-like compounds","cf. Dioxins and dioxin-like compounds","Avis 19/10/2019","0,02 µg/l"]
["40321-76-4","1,2,3,7,8-P5CDD",2569,"NQE","Arrêté du 27 juillet 2015","SDP","cf. Dioxins and dioxin-like compounds","cf. Dioxins and dioxin-like compounds","cf. Dioxins and dioxin-like compounds","cf. Dioxins and dioxin-like compounds","Avis 19/10/2019","0,02 µg/l"]
["57117-41-6","1,2,3,7,8-P5CDF",2588,"NQE","Arrêté du 27 juillet 2015","SDP","cf. Dioxins and dioxin-like compounds","cf. Dioxins and dioxin-like compounds","cf. Dioxins and dioxin-like compounds","cf. Dioxins and dioxin-like compounds","Avis 19/10/2019","0,02 µg/l"]
["39635-31-9","2,3,3',4,4',5,5'-H7CB (PCB 189)",5437,"NQE","Arrêté du 27 juillet 2015","SDP","cf. Dioxins and dioxin-like compounds","cf. Dioxins and dioxin-like compounds","cf. Dioxins and dioxin-like compounds","cf. Dioxins and dioxin-like compounds","Avis 19/10/2019","0,02 µg/l"]
["38380-08-4","2,3,3',4,4',5-H6CB (PCB 156)",2032,"NQE","Arrêté du 27 juillet 2015","SDP","cf. Dioxins and dioxin-like compounds","cf. Dioxins and dioxin-like compounds","cf. Dioxins and dioxin-like compounds","cf. Dioxins and dioxin-like compounds","Avis 19/10/2019","0,1 µg/l"]
["69782-90-7","2,3,3',4,4',5'-H6CB (PCB 157)",5435,"NQE","Arrêté du 27 juillet 2015","SDP","cf. Dioxins and dioxin-like compounds","cf. Dioxins and dioxin-like compounds","cf. Dioxins and dioxin-like compounds","cf. Dioxins and dioxin-like compounds","Avis 19/10/2019","0,02 µg/l"]
["32598-14-4","2,3,3',4,4'-P5CB (PCB 105)",1627,"NQE","Arrêté du 27 juillet 2015","SDP","cf. Dioxins and dioxin-like compounds","cf. Dioxins and dioxin-like compounds","cf. Dioxins and dioxin-like compounds","cf. Dioxins and dioxin-like compounds","Avis 19/10/2019","1 µg/l"]
["52663-72-6","2,3',4,4',5,5'-H6CB (PCB 167)",5436,"NQE","Arrêté du 27 juillet 2015","SDP","cf. Dioxins and dioxin-like compounds","cf. Dioxins and dioxin-like compounds","cf. Dioxins and dioxin-like compounds","cf. Dioxins and dioxin-like compounds","Avis 19/10/2019","0,02 µg/l"]
["74472-37-0","2,3,4,4',5-P5CB (PCB 114)",5433,"NQE","Arrêté du 27 juillet 2015","SDP","cf. Dioxins and dioxin-like compounds","cf. Dioxins and dioxin-like compounds","cf. Dioxins and dioxin-like compounds","cf. Dioxins and dioxin-like compounds","Avis 19/10/2019","0,02 µg/l"]
["31508-00-6","2,3',4,4',5-P5CB (PCB 118)",1243,"NQE","Arrêté du 27 juillet 2015","SDP","cf. Dioxins and dioxin-like compounds","cf. Dioxins and dioxin-like compounds","cf. Dioxins and dioxin-like compounds","cf. Dioxins and dioxin-like compounds","Avis 19/10/2019","0,005 µg/l"]
["65510-44-3","2,3',4,4',5'-P5CB (PCB 123)",5434,"NQE","Arrêté du 27 juillet 2015","SDP","cf. Dioxins and dioxin-like compounds","cf. Dioxins and dioxin-like compounds","cf. Dioxins and dioxin-like compounds","cf. Dioxins and dioxin-like compounds","Avis 19/10/2019","0,02 µg/l"]
["60851-34-5","2,3,4,6,7,8-H6CDF",2593,"NQE","Arrêté du 27 juillet 2015","SDP","cf. Dioxins and dioxin-like compounds","cf. Dioxins and dioxin-like compounds","cf. Dioxins and dioxin-like compounds","cf. Dioxins and dioxin-like compounds","Avis 19/10/2019","0,02 µg/l"]
["57117-31-4","2,3,4,7,8-P5CDF",2589,"NQE","Arrêté du 27 juillet 2015","SDP","cf. Dioxins and dioxin-like compounds","cf. Dioxins and dioxin-like compounds","cf. Dioxins and dioxin-like compounds","cf. Dioxins and dioxin-like compounds","Avis 19/10/2019","0,02 µg/l"]
["51207-31-9","2,3,7,8-T4CDF",2586,"NQE","Arrêté du 27 juillet 2015","SDP","cf. Dioxins and dioxin-like compounds","cf. Dioxins and dioxin-like compounds","cf. Dioxins and dioxin-like compounds","cf. Dioxins and dioxin-like compounds","Avis 19/10/2019","0,02 µg/l"]
["32774-16-6","3,3’,4,4’,5,5’-H6CB (PCB 169)",1090,"NQE","Arrêté du 27 juillet 2015","SDP","cf. Dioxins and dioxin-like compounds","cf. Dioxins and dioxin-like compounds","cf. Dioxins and dioxin-like compounds","cf. Dioxins and dioxin-like compounds","Avis 19/10/2019","0,02 µg/l"]
["57465-28-8","3,3’,4,4’,5-P5CB (PCB 126)",1089,"NQE","Arrêté du 27 juillet 2015","SDP","cf. Dioxins and dioxin-like compounds","cf. Dioxins and dioxin-like compounds","cf. Dioxins and dioxin-like compounds","cf. Dioxins and dioxin-like compounds","Avis 19/10/2019","0,02 µg/l"]
["32598-13-3","3,3’,4,4’-T4CB (PCB 77)",1091,"NQE","Arrêté du 27 juillet 2015","SDP","cf. Dioxins and dioxin-like compounds","cf. Dioxins and dioxin-like compounds","cf. Dioxins and dioxin-like compounds","cf. Dioxins and dioxin-like compounds","Avis 19/10/2019","0,02 µg/l"]
["70362-50-4","3,3’,4’,5-T4CB (PCB 81)",5432,"NQE","Arrêté du 27 juillet 2015","SDP","cf. Dioxins and dioxin-like compounds","cf. Dioxins and dioxin-like compounds","cf. Dioxins and dioxin-like compounds","cf. Dioxins and dioxin-like compounds","Avis 19/10/2019","0,02 µg/l"]
["noCAS","cf. Dioxins and dioxin-like compounds",null,"NQE","Arrêté du 27 juillet 2015","SDP","0,0065 µg/kg TEQ(*)","0,0065 µg/kg TEQ(*)","Pas de valeur","Pas de valeur","Avis 19/10/2019"]
["74070-46-5","Aclonifen",1688,"NQE","Arrêté du 27 juillet 2015","SP",0.12,1.2E-2,0.12,1.2E-2,"Avis 19/10/2019","0,1 µg/l"]
["42576-02-3","Bifenox",1119,"NQE","Arrêté du 27 juillet 2015","SP",1.2E-2,1.1999999999999999E-3,0.04,4.0000000000000001E-3,"Avis 19/10/2019","0,1 µg/l"]
["28159-98-0","Cybutryne",3522,"NQE","Arrêté du 27 juillet 2015","SP",2.5000000000000001E-3,2.5000000000000001E-3,1.6E-2,1.6E-2,"Avis 19/10/2019","0,02 µg/l"]
["52315-07-8","Cypermethrine",1140,"NQE","Arrêté du 27 juillet 2015","SP",8.0000000000000007E-5,7.9999999999999996E-6,5.9999999999999995E-4,6.0000000000000002E-5,"Avis 19/10/2019","0,02 µg/l"]
["62-73-7","Dichlorvos",1170,"NQE","Arrêté du 27 juillet 2015","SP",5.9999999999999995E-4,6.0000000000000002E-5,6.9999999999999999E-4,6.9999999999999994E-5,"Avis 19/10/2019","0,05 µg/l"]
["25637-99-4","HexaBromoCycloDoDecane (HBCDD)",7128,"NQE","Arrêté du 27 juillet 2015","SDP",1.6000000000000001E-3,8.0000000000000004E-4,0.5,0.05,"Avis 19/10/2019","0,05 µg/l"]
["3194-55-6","Hexabromocyclododecane-1,2,5,6,9,10","/","NQE","Arrêté du 27 juillet 2015","SDP",1.6000000000000001E-3,8.0000000000000004E-4,0.5,0.05,"Avis 19/10/2019"]
["134237-50-6","Hexabromocyclododecane-alpha",6651,"NQE","Arrêté du 27 juillet 2015","SDP",1.6000000000000001E-3,8.0000000000000004E-4,0.5,0.05,"Avis 19/10/2019","1 µg/l"]
["134237-51-7","Hexabromocyclododecane-beta",6652,"NQE","Arrêté du 27 juillet 2015","SDP",1.6000000000000001E-3,8.0000000000000004E-4,0.5,0.05,"Avis 19/10/2019","1 µg/l"]
["134237-52-8","Hexabromocyclododecane-gamma",6653,"NQE","Arrêté du 27 juillet 2015","SDP",1.6000000000000001E-3,8.0000000000000004E-4,0.5,0.05,"Avis 19/10/2019","1 µg/l"]
["76-44-8","Heptachlore",1197,"NQE","Arrêté du 27 juillet 2015","SDP",1.9999999999999999E-7,1.7999999999999999E-8,2.9999999999999997E-4,3.0000000000000001E-5,"Avis 19/10/2019","0,02 µg/l"]
["1024-57-3","Oxyde d'heptachlore (cis)",1748,"NQE","Arrêté du 27 juillet 2015","SDP",1.9999999999999999E-7,1.7999999999999999E-8,2.9999999999999997E-4,3.0000000000000001E-5,"Avis 19/10/2019","0,02 µg/l"]
["886-50-0","Terbutryne",1269,"NQE","Arrêté du 27 juillet 2015","SP",6.5000000000000002E-2,6.4999999999999997E-3,0.34,3.4000000000000002E-2,"Avis 19/10/2019","0,1 µg/l"]
["127-18-4","Tétrachloroéthylène",1272,"NQE","Arrêté du 25 janvier 2010","Liste 1",10,10,"Pas de valeur","Pas de valeur","Avis 19/10/2019","0,5 µg/l"]
["1979-01-06","Trichloroéthylène",1286,"NQE","Arrêté du 25 janvier 2010","Liste 1",10,10,"Pas de valeur","Pas de valeur","Avis 19/10/2019","0,5 µg/l"]
["56-23-5","Tétrachlorure de carbone",1276,"NQE","Arrêté du 25 janvier 2010","Liste 1",12,12,"Pas de valeur","Pas de valeur","Avis 19/10/2019","0,5 µg/l"]
["309-00-2","Aldrine",1103,"NQE","Arrêté du 25 janvier 2010","Liste 1","somme = 0,01","somme = 0,005","Pas de valeur","Pas de valeur","Avis 19/10/2019","0,05 µg/l"]
["noCAS","Cyclodiènes pesticides (Aldrine, Dieldrine, Endrine, Isodrine)","/","NQE","Arrêté du 25 janvier 2010","Liste 1","somme = 0,01","somme = 0,005","Pas de valeur","Pas de valeur","Avis 19/10/2019"]
["60-57-1","Dieldrine",1173,"NQE","Arrêté du 25 janvier 2010","Liste 1","somme = 0,01","somme = 0,005","Pas de valeur","Pas de valeur","Avis 19/10/2019","0,05 µg/l"]
["72-20-8","Endrine",1181,"NQE","Arrêté du 25 janvier 2010","Liste 1","somme = 0,01","somme = 0,005","Pas de valeur","Pas de valeur","Avis 19/10/2019","0,05 µg/l"]
["465-73-6","Isodrine",1207,"NQE","Arrêté du 25 janvier 2010","Liste 1","somme = 0,01","somme = 0,005","Sans objet","Sans objet","Avis 19/10/2019","0,05 µg/l"]
["72-54-8","DDD-4,4'",1144,"NQE","Arrêté du 25 janvier 2010","Liste 1",2.5000000000000001E-2,2.5000000000000001E-2,"Sans objet","Sans objet","Avis 19/10/2019","0,05 µg/l"]
["72-55-9","DDE-4,4'",1146,"NQE","Arrêté du 25 janvier 2010","Liste 1",2.5000000000000001E-2,2.5000000000000001E-2,"Sans objet","Sans objet","Avis 19/10/2019","0,05 µg/l"]
["noCAS","DDT total (somme DDT-4,4' + DDT-2,4' + DDE-4,4' + DDD-4,4')",7170,"NQE","Arrêté du 25 janvier 2010","Liste 1",2.5000000000000001E-2,2.5000000000000001E-2,"Pas de valeur","Pas de valeur","Avis 19/10/2019","0,05 µg/l"]
[{"$error":"#N/A"},"DDT-2,4'",1147,"NQE","Arrêté du 25 janvier 2010","Liste 1",2.5000000000000001E-2,2.5000000000000001E-2,"Sans objet","Sans objet","Avis 19/10/2019","0,05 µg/l"]
["50-29-3","para-para-DDT",1148,"NQE","Arrêté du 25 janvier 2010","Liste 1",0.01,0.01,"Pas de valeur","Pas de valeur","Avis 19/10/2019","0,05 µg/l"]
["94-75-7","2,4-D (dont sels de 2,4-D et esters de 2,4-D)",1141,"NQE","Arrêté du 25 janvier 2010","PSEE",2.2000000000000002,"Sans objet","Sans objet","Sans objet","Avis 19/10/2019","0,1 µg/l"]
["94-74-6","2,4-MCPA",1212,"NQE","Arrêté du 25 janvier 2010","PSEE",0.5,"Sans objet","Sans objet","Sans objet","Avis 19/10/2019","0,05 µg/l"]
["61-82-5","Aminotriazole",1105,"NQE","Arrêté du 27 juillet 2015","PSEE",0.08,"Sans objet","Sans objet","Sans objet","Avis 19/10/2019","0,1 µg/l"]
["1066-51-9","AMPA",1907,"NQE","Arrêté du 27 juillet 2015","PSEE",450,"Sans objet","Sans objet","Sans objet","Avis 19/10/2019","0,1 µg/l"]
["7440-38-2","Arsenic et composés minéraux",1369,"NQE","Arrêté du 25 janvier 2010","PSEE",0.83,"Sans objet","Sans objet","Sans objet","Avis 19/10/2019","5 µg/l"]
["131860-33-8","Azoxystrobine",1951,"NQE","Arrêté du 27 juillet 2015","PSEE",0.95,"Sans objet","Sans objet","Sans objet","Avis 19/10/2019","0,1 µg/l"]
["25057-89-0","Bentazone",1113,"NQE","Arrêté du 27 juillet 2015","PSEE",70,"Sans objet","Sans objet","Sans objet","Avis 19/10/2019","0,05 µg/l"]
["92-52-4","Biphényle",1584,"NQE","Arrêté du 27 juillet 2015","PSEE",3.3,"Sans objet","Sans objet","Sans objet","Avis 19/10/2019","0,05 µg/l"]
["188425-85-6","Boscalid",5526,"NQE","Arrêté du 27 juillet 2015","PSEE",12,"Sans objet","Sans objet","Sans objet","Avis 19/10/2019","0,1 µg/l"]
["143-50-0","Chlordecone",1866,"NQE","Arrêté du 25 janvier 2010","PSEE",5.0000000000000004E-6,"Sans objet","Sans objet","Sans objet","Avis 19/10/2019","0,15 µg/l"]
["101-21-3","Chlorprophame",1474,"NQE","Arrêté du 27 juillet 2015","PSEE",4,"Sans objet","Sans objet","Sans objet","Avis 19/10/2019","0,1 µg/l"]
["15545-48-9","Chlortoluron",1136,"NQE","Arrêté du 25 janvier 2010","PSEE",0.1,"Sans objet","Sans objet","Sans objet","Avis 19/10/2019","0,1 µg/l"]
["7440-47-3","Chrome",1389,"NQE","Arrêté du 25 janvier 2010","PSEE",3.4,"Sans objet","Sans objet","Sans objet","Avis 19/10/2019","5 µg/l"]
["7440-50-8","Cuivre",1392,"NQE","Arrêté du 25 janvier 2010","PSEE",1,"Sans objet","Sans objet","Sans objet","Avis 19/10/2019","5 µg/l"]
["121552-61-2","Cyprodinil",1359,"NQE","Arrêté du 27 juillet 2015","PSEE",2.5999999999999999E-2,"Sans objet","Sans objet","Sans objet","Avis 19/10/2019","0,05 µg/l"]
["83164-33-4","Diflufenicanil",1814,"NQE","Arrêté du 27 juillet 2015","PSEE",0.01,"Sans objet","Sans objet","Sans objet","Avis 19/10/2019","0,05 µg/l"]
["1071-83-6","Glyphosate",1506,"NQE","Arrêté du 27 juillet 2015","PSEE",28,"Sans objet","Sans objet","Sans objet","Avis 19/10/2019","0,1 µg/l"]
["138261-41-3","Imidaclopride",1877,"NQE","Arrêté du 27 juillet 2015","PSEE",0.2,"Sans objet","Sans objet","Sans objet","Avis 19/10/2019","0,05 µg/l"]
["36734-19-7","Iprodione",1206,"NQE","Arrêté du 27 juillet 2015","PSEE",0.35,"Sans objet","Sans objet","Sans objet","Avis 19/10/2019","0,1 µg/l"]
["330-55-2","Linuron",1209,"NQE","Arrêté du 25 janvier 2010","PSEE",1,"Sans objet","Sans objet","Sans objet","Avis 19/10/2019","0,05 µg/l"]
["108-62-3","Métaldéhyde",1796,"NQE","Arrêté du 27 juillet 2015","PSEE",61,"Sans objet","Sans objet","Sans objet","Avis 19/10/2019","0,1 µg/l"]
[{"$error":"#N/A"},"Métazachlore",1670,"NQE","Arrêté du 27 juillet 2015","PSEE",1.9E-2,"Sans objet","Sans objet","Sans objet","Avis 19/10/2019","0,05 µg/l"]
["111991-09-4","Nicosulfuron",1882,"NQE","Arrêté du 27 juillet 2015","PSEE",3.5000000000000003E-2,"Sans objet","Sans objet","Sans objet","Avis 19/10/2019","0,05 µg/l"]
["19666-30-9","Oxadiazon",1667,"NQE","Arrêté du 25 janvier 2010","PSEE",0.09,"Sans objet","Sans objet","Sans objet","Avis 19/10/2019","0,03 µg/l"]
["40487-42-1","Pendiméthaline",1234,"NQE","Arrêté du 27 juillet 2015","PSEE",0.02,"Sans objet","Sans objet","Sans objet","Avis 19/10/2019","0,05 µg/l"]
["126-73-8","Phosphate de tributyle",1847,"NQE","Arrêté du 27 juillet 2015","PSEE",82,"Sans objet","Sans objet","Sans objet","Avis 19/10/2019","0,1 µg/l"]
["107534-96-3","Tébuconazole",1694,"NQE","Arrêté du 27 juillet 2015","PSEE",1,"Sans objet","Sans objet","Sans objet","Avis 19/10/2019","0,1 µg/l"]
["148-79-8","Thiabendazole",1713,"NQE","Arrêté du 27 juillet 2015","PSEE",1.2,"Sans objet","Sans objet","Sans objet","Avis 19/10/2019","0,1 µg/l"]
["108-88-3","Toluène",1278,"NQE","Arrêté du 27 juillet 2015","PSEE",74,"Sans objet","Sans objet","Sans objet","Avis 19/10/2019","1 µg/l"]
["1330-20-7","Xylènes",1780,"NQE","Arrêté du 27 juillet 2015","PSEE",1,"Sans objet","Sans objet","Sans objet","Avis 19/10/2019","0,01 µg/l"]
["7440-66-6","Zinc",1383,"NQE","Arrêté du 25 janvier 2010","PSEE",7.8,"Sans objet","Sans objet","Sans objet","Avis 19/10/2019","5 µg/l"]
["16887-00-6","Chlorures",1337,"VGE","avis INERIS 27/5/19",null,"30E+03 (hors fond géochimique spécifique)","Sans objet","Sans objet","Sans objet","Avis 19/10/2019","10 mg/l"]
[null,null,null,null,null,null,"45E+03 (absence de bivalves et hors fond géochimique spécifique)","Sans objet","Sans objet","Sans objet"]
["14808-79-8","Sulfates",1338,"VGE","avis INERIS decembre 2019",null,"28E+03 (dureté ≤ 50 mg CaCO3/L)","Sans objet","Sans objet","Sans objet","Avis 19/10/2019","10 mg(SO4) /l"]
[null,null,null,null,null,null,"56E+03 (dureté > 50 mg CaCO3/L et ≤ 100 mg CaCO3/L)","Sans objet","Sans objet","Sans objet"]

{"sheet":"Matrice réponse","index":7,"n_rows":40,"n_cols":3,"rows_kept":40,"cut":false,"hidden":true,"merged":[]}
[null,"Matrice des répones"]
[]
[null,"NB : pour alerter sur la nécessité de faire un bilan apport macropol"]
[]
[]
[null,1,"rejet acceptable"]
[null,2,"rejet acceptable"]
[null,3,"seuil d'alerte dépassé"]
[null,4,"rejet inacceptable"]
[]
[null,"cas","réponse"]
["NQE-MA","conc ajouté comprise entre 0,8xNQE et 1xNQE","seuil d'alerte dépassé pour NQE-MA"]
["NQE-MA","conc ajouté comprise supérieure NQE","rejet inacceptable"]
["NQE-MA","conc ajouté inf 0.1NQE","rejet acceptable"]
["NQE-CMA","conc ajouté comprise entre 0,8NQE et NQE"]
["NQE-CMA","conc ajouté comprise supérieure NQE"]
["NQE-CMA","conc ajouté inf 0.1NQE"]
[]
[]
["Test de la concentration ajoutée après rejet moyen"]
[1,"conc ajoutée inf 0.1NQE"]
[2,"conc ajoutée comprise entre 0,1NQE et 0,8NQE"]
[3,"conc ajoutée comprise entre 0,8NQE et 1NQE"]
[4,"conc ajoutée supérieure à la NQE"]
[]
["Test de la concentration ajoutée après rejet max"]
[1,"conc ajoutée supérieure à la NQE"]
[2,"conc ajoutée comprise entre 0,8NQE et NQE"]
[3,"conc ajoutée inf 0.1NQE"]
[]
["Test du rejet moyen / FMA moyen"]
[1,"Flux rejet moyen < 10% du flux théorique admissible"]
[2,"Flux rejet moyen compris entre 10% et 80% du flux théorique admissible"]
[3,"Flux rejet moyen > 80% du flux théorique admissible"]
[]
[]
["Test du rejet max / FMA max"]
[1,"Flux rejet max < 10% du flux théorique admissible"]
[2,"Flux rejet max compris entre 10% et 80% du flux théorique admissible"]
[3,"Flux rejet max > 80% du flux théorique admissible"]

{"sheet":"Source NQE","index":8,"n_rows":99,"n_cols":20,"rows_kept":99,"cut":false,"hidden":true,"merged":[[0,14,1,14],[0,18,0,19],[0,0,1,0],[0,1,1,1],[0,2,1,2],[0,3,1,3],[0,4,1,4],[0,5,1,5]]}
["Famille","Substances","Code SANDRE","Classement","Substance à rechercher en entrée station","Substance à rechercher en sortie station",null,null,null,null,"NQE",null,null,null,"Flux GEREP annuel (kg/an)",null,"LQ",null,"Analyses en entrée station"]
[null,null,null,null,null,null,"Texte de référence pour la NQE","NQE MA Eaux de surface intérieures(mg/l)","Vérification PSEE","Verification directive","NQE MA autres eaux de surface(mg/l)","NQE CMA Eaux de surface intérieures  (mg/l)","Verification directive","NQE CMA Autres eaux de surface (mg/l)",null,"Texte de référence pour LQ","LQ\nEaux en sortie & eaux en entrée sans séparation des fractions (µg/l)","LQ\nEaux en entrée avec séparation des fractions (µg/l)","Substances à analyser sans séparation de phases","Substances recommandées pour analyse dans les deux phases"]
["COHV","1,2 dichloroéthane",1161,"SP","x","x","AM 25/01/2010",10,{"$f":"VLOOKUP(C3,'[1]PSEE 27_7_2015'!#REF!,15,FALSE)","v":{"$error":"#REF!"}},{"$f":"VLOOKUP(C3,[2]Feuil1!#REF!,2,FALSE)","v":{"$error":"#REF!"}},10,"sans objet",{"$f":"VLOOKUP(C3,[2]Feuil1!#REF!,4,FALSE)","v":{"$error":"#REF!"}},"sans objet",10,"Avis 08/11/2015",2,"/","X"]
["Pesticides","2,4 D",1141,"PSEE","x","x","AM 27/07/2015",2.2000000000000002,{"$f":"VLOOKUP(C4,'[1]PSEE 27_7_2015'!#REF!,15,FALSE)","v":{"$error":"#REF!"}},{"$f":"VLOOKUP(C4,[2]Feuil1!#REF!,2,FALSE)","v":{"$error":"#REF!"}},"Néant","Néant",{"$f":"VLOOKUP(C4,[2]Feuil1!#REF!,4,FALSE)","v":{"$error":"#REF!"}},"Néant","Néant","Avis 08/11/2015",0.1,{"$f":"2*Q4","v":0.2},null,"X"]
["Pesticides","2,4 MCPA",1212,"PSEE","x","x","AM 27/07/2015",0.5,{"$f":"VLOOKUP(C5,'[1]PSEE 27_7_2015'!#REF!,15,FALSE)","v":{"$error":"#REF!"}},{"$f":"VLOOKUP(C5,[2]Feuil1!#REF!,2,FALSE)","v":{"$error":"#REF!"}},"Néant","Néant",{"$f":"VLOOKUP(C5,[2]Feuil1!#REF!,4,FALSE)","v":{"$error":"#REF!"}},"Néant","Néant","Avis 08/11/2015",0.05,0.1,null,"X"]
["Pesticides","Aclonifene",1688,"SP","x","x","AM 25/01/2010",0.12,{"$f":"VLOOKUP(C6,'[1]PSEE 27_7_2015'!#REF!,15,FALSE)","v":{"$error":"#REF!"}},{"$f":"VLOOKUP(C6,[2]Feuil1!#REF!,2,FALSE)","v":{"$error":"#REF!"}},1.2E-2,0.12,{"$f":"VLOOKUP(C6,[2]Feuil1!#REF!,4,FALSE)","v":{"$error":"#REF!"}},1.2E-2,"Néant",null,0.1,0.2,null,"X"]
["Pesticides","Aminotriazole",1105,"PSEE","x","x","AM 27/07/2015",0.08,{"$f":"VLOOKUP(C7,'[1]PSEE 27_7_2015'!#REF!,15,FALSE)","v":{"$error":"#REF!"}},{"$f":"VLOOKUP(C7,[2]Feuil1!#REF!,2,FALSE)","v":{"$error":"#REF!"}},"Néant","Néant",{"$f":"VLOOKUP(C7,[2]Feuil1!#REF!,4,FALSE)","v":{"$error":"#REF!"}},"Néant","Néant",null,0.1,0.2,null,"X"]
["Pesticides","AMPA (Acide aminométhylphosphonique)",1907,"PSEE","x","x","AM 27/07/2015",452,{"$f":"VLOOKUP(C8,'[1]PSEE 27_7_2015'!#REF!,15,FALSE)","v":{"$error":"#REF!"}},{"$f":"VLOOKUP(C8,[2]Feuil1!#REF!,2,FALSE)","v":{"$error":"#REF!"}},"Néant","Néant",{"$f":"VLOOKUP(C8,[2]Feuil1!#REF!,4,FALSE)","v":{"$error":"#REF!"}},"Néant","Néant",null,0.1,0.2,null,"X"]
["HAP","Anthracène",1458,"SDP","x","x","AM 25/01/2010",0.1,{"$f":"VLOOKUP(C9,'[1]PSEE 27_7_2015'!#REF!,15,FALSE)","v":{"$error":"#REF!"}},{"$f":"VLOOKUP(C9,[2]Feuil1!#REF!,2,FALSE)","v":{"$error":"#REF!"}},0.1,0.1,{"$f":"VLOOKUP(C9,[2]Feuil1!#REF!,4,FALSE)","v":{"$error":"#REF!"}},0.1,1,"Avis 08/11/2015",0.01,0.01,null,"X"]
["Métaux","Arsenic (métal total)",1369,"PSEE","x","x","AM 25/01/2010",0.83,{"$f":"VLOOKUP(C10,'[1]PSEE 27_7_2015'!#REF!,15,FALSE)","v":{"$error":"#REF!"}},0.83,"Néant","Néant",{"$f":"VLOOKUP(C10,[2]Feuil1!#REF!,4,FALSE)","v":{"$error":"#REF!"}},"Néant",5,"Avis 08/11/2015",5,"/","X"]
["Pesticides","Azoxystrobine",1951,"PSEE","x","x","AM 27/07/2015",0.95,{"$f":"VLOOKUP(C11,'[1]PSEE 27_7_2015'!#REF!,15,FALSE)","v":{"$error":"#REF!"}},{"$f":"VLOOKUP(C11,[2]Feuil1!#REF!,2,FALSE)","v":{"$error":"#REF!"}},"Néant","Néant",{"$f":"VLOOKUP(C11,[2]Feuil1!#REF!,4,FALSE)","v":{"$error":"#REF!"}},"Néant","Néant",null,0.1,0.2,null,"X"]
["PBDE","BDE 028",2920,"SDP","x","x","AM 25/01/2010","Néant",null,null,"Néant","0,14(4)",0.14000000000000001,"0,014 (4)","1(6)",null,0.02,0.04,null,"X"]
["PBDE","BDE 047",2919,"SDP","x","x","AM 25/01/2010","Néant",null,null,"Néant","0,14(4)",0.14000000000000001,"0,014 (4)","1(6)",null,0.02,0.04,null,"X"]
["PBDE","BDE 099",2916,"SDP","x","x","AM 25/01/2010","Néant",null,null,"Néant","0,14(4)",0.14000000000000001,"0,014 (4)","1(6)",null,0.02,0.04,null,"X"]
["PBDE","BDE 100",2915,"SDP","x","x","AM 25/01/2010","Néant",null,null,"Néant","0,14(4)",0.14000000000000001,"0,014 (4)","1(6)",null,0.02,0.04,null,"X"]
["PBDE","BDE 153",2912,"SDP","x","x","AM 25/01/2010","Néant",null,null,"Néant","0,14(4)",0.14000000000000001,"0,014 (4)","1(6)",null,0.02,0.04,null,"X"]
["PBDE","BDE 154",2911,"SDP","x","x","AM 25/01/2010","Néant",null,null,"Néant","0,14(4)",0.14000000000000001,"0,014 (4)","1(6)",null,0.02,0.04,null,"X"]
["PBDE","BDE 183",2910,null,"x","x","AM 25/01/2010","Néant",null,null,"Néant","Néant",{"$f":"VLOOKUP(C18,[2]Feuil1!#REF!,4,FALSE)","v":{"$error":"#REF!"}},"Néant","1(6)",null,0.02,0.04,null,"X"]
["PBDE","BDE 209 (décabromodiphényl oxyde)",1815,null,"x","x","Néant","Néant",null,null,"Néant","Néant",{"$f":"VLOOKUP(C19,[2]Feuil1!#REF!,4,FALSE)","v":{"$error":"#REF!"}},"Néant","1(6)","Avis 08/11/2015",0.05,0.1,null,"X"]
["Pesticides","Bentazone",1113,"PSEE","x","x","AM 27/07/2015",70,{"$f":"VLOOKUP(C20,'[1]PSEE 27_7_2015'!#REF!,15,FALSE)","v":{"$error":"#REF!"}},{"$f":"VLOOKUP(C20,[2]Feuil1!#REF!,2,FALSE)","v":{"$error":"#REF!"}},"Néant","Néant",{"$f":"VLOOKUP(C20,[2]Feuil1!#REF!,4,FALSE)","v":{"$error":"#REF!"}},"Néant","Néant",null,0.05,0.1,null,"X"]
["BTEX","Benzène",1114,"SP","x","x","AM 25/01/2010",10,{"$f":"VLOOKUP(C21,'[1]PSEE 27_7_2015'!#REF!,15,FALSE)","v":{"$error":"#REF!"}},{"$f":"VLOOKUP(C21,[2]Feuil1!#REF!,2,FALSE)","v":{"$error":"#REF!"}},8,50,{"$f":"VLOOKUP(C21,[2]Feuil1!#REF!,4,FALSE)","v":{"$error":"#REF!"}},50,"200(7)","Avis 08/11/2015",1,"/","X"]
["HAP","Benzo (a) Pyrène",1115,"SDP","x","x","AM 25/01/2010","1,7 × 10–4",{"$f":"VLOOKUP(C22,'[1]PSEE 27_7_2015'!#REF!,15,FALSE)","v":{"$error":"#REF!"}},{"$f":"VLOOKUP(C22,[2]Feuil1!#REF!,2,FALSE)","v":{"$error":"#REF!"}},"1,7 × 10–4",0.27,{"$f":"VLOOKUP(C22,[2]Feuil1!#REF!,4,FALSE)","v":{"$error":"#REF!"}},2.7E-2,"5(8)","Avis 08/11/2015",0.01,0.01,null,"X"]
["HAP","Benzo (b) Fluoranthène",1116,"SDP","x","x","AM 25/01/2010","Néant",null,null,"Néant",1.7000000000000001E-2,{"$f":"VLOOKUP(C23,[2]Feuil1!#REF!,4,FALSE)","v":{"$error":"#REF!"}},1.7000000000000001E-2,"5(8)","Avis 08/11/2015",5.0000000000000001E-3,0.01,null,"X"]
["HAP","Benzo (g,h,i) Pérylène",1118,"SDP","x","x","AM 25/01/2010","Néant",null,null,"Néant","8,2 × 10–3",{"$f":"VLOOKUP(C24,[2]Feuil1!#REF!,4,FALSE)","v":{"$error":"#REF!"}},"8,2 × 10–4",1,"Avis 08/11/2015",5.0000000000000001E-3,0.01,null,"X"]
["HAP","Benzo (k) Fluoranthène",1117,"SDP","x","x","AM 25/01/2010","Néant",null,null,"Néant",1.7000000000000001E-2,{"$f":"VLOOKUP(C25,[2]Feuil1!#REF!,4,FALSE)","v":{"$error":"#REF!"}},1.7000000000000001E-2,"5(8)","Avis 08/11/2015",5.0000000000000001E-3,0.01,null,"X"]
["Pesticides","Bifenox",1119,"SP","x","x","AM 25/01/2010",1.2E-2,{"$f":"VLOOKUP(C26,'[1]PSEE 27_7_2015'!#REF!,15,FALSE)","v":{"$error":"#REF!"}},{"$f":"VLOOKUP(C26,[2]Feuil1!#REF!,2,FALSE)","v":{"$error":"#REF!"}},1.1999999999999999E-3,0.04,{"$f":"VLOOKUP(C26,[2]Feuil1!#REF!,4,FALSE)","v":{"$error":"#REF!"}},4.0000000000000001E-3,"Néant",null,0.1,0.2,null,"X"]
["Autres","Biphényle",1584,"PSEE","x","x","AM 27/07/2015",3.3,{"$f":"VLOOKUP(C27,'[1]PSEE 27_7_2015'!#REF!,15,FALSE)","v":{"$error":"#REF!"}},{"$f":"VLOOKUP(C27,[2]Feuil1!#REF!,2,FALSE)","v":{"$error":"#REF!"}},"Néant","Néant",{"$f":"VLOOKUP(C27,[2]Feuil1!#REF!,4,FALSE)","v":{"$error":"#REF!"}},"Néant","Néant","Avis 08/11/2015",0.05,0.05,null,"X"]
["Pesticides","Boscalid",5526,"PSEE","x","x","AM 27/07/2015",11.6,{"$f":"VLOOKUP(C28,'[1]PSEE 27_7_2015'!#REF!,15,FALSE)","v":{"$error":"#REF!"}},{"$f":"VLOOKUP(C28,[2]Feuil1!#REF!,2,FALSE)","v":{"$error":"#REF!"}},"Néant","Néant",{"$f":"VLOOKUP(C28,[2]Feuil1!#REF!,4,FALSE)","v":{"$error":"#REF!"}},"Néant","Néant",null,0.1,0.2,null,"X"]
["Métaux","Cadmium (métal total)",1388,"SDP","x","x","AM 25/01/2010","≤ 0,08 (Classe 1)\n0,08 (Classe 2)\n0,09 (Classe 3)\n0,15 (Classe 4)\n0,25 (Classe 5)(1) (3)",{"$f":"VLOOKUP(C29,'[1]PSEE 27_7_2015'!#REF!,15,FALSE)","v":{"$error":"#REF!"}},"≤ 0,08 (Classe 1)\n0,08 (Classe 2)\n0,09 (Classe 3)\n0,15 (Classe 4)\n0,25 (Classe 5)(1)","0,2 (3)","≤ 0,45 (classe 1) 0,45 (classe 2) 0,6 (classe 3) 0,9 (classe 4) 1,5 (classe 5) (3) (5) ","≤ 0,45 (classe 1) 0,45 (classe 2) 0,6 (classe 3) 0,9 (classe 4) 1,5 (classe 5)(5)","≤ 0,45 (classe 1) 0,45 (classe 2) 0,6 (classe 3) 0,9 (classe 4) 1,5 (classe 5) (3) (5)",1,"Avis 08/11/2015",1,"/","X"]
["Autres","Chloroalcanes C10-C13",1955,"SDP","x","x","AM 25/01/2010",0.4,{"$f":"VLOOKUP(C30,'[1]PSEE 27_7_2015'!#REF!,15,FALSE)","v":{"$error":"#REF!"}},{"$f":"VLOOKUP(C30,[2]Feuil1!#REF!,2,FALSE)","v":{"$error":"#REF!"}},0.4,1.4,{"$f":"VLOOKUP(C30,[2]Feuil1!#REF!,4,FALSE)","v":{"$error":"#REF!"}},1.4,1,"Avis 08/11/2015",5,10,null,"X"]
["Pesticides","Chlorprophame",1474,"PSEE","x","x","AM 27/07/2015",4,{"$f":"VLOOKUP(C31,'[1]PSEE 27_7_2015'!#REF!,15,FALSE)","v":{"$error":"#REF!"}},{"$f":"VLOOKUP(C31,[2]Feuil1!#REF!,2,FALSE)","v":{"$error":"#REF!"}},"Néant","Néant",{"$f":"VLOOKUP(C31,[2]Feuil1!#REF!,4,FALSE)","v":{"$error":"#REF!"}},"Néant","Néant",null,0.1,0.2,null,"X"]
["Pesticides","Chlortoluron",1136,"PSEE","x","x","AM 27/07/2015",0.1,{"$f":"VLOOKUP(C32,'[1]PSEE 27_7_2015'!#REF!,15,FALSE)","v":{"$error":"#REF!"}},{"$f":"VLOOKUP(C32,[2]Feuil1!#REF!,2,FALSE)","v":{"$error":"#REF!"}},"Néant","Néant",{"$f":"VLOOKUP(C32,[2]Feuil1!#REF!,4,FALSE)","v":{"$error":"#REF!"}},"Néant","Néant","Avis 08/11/2015",0.05,0.05,null,"X"]
["Métaux","Chrome (métal total)",1389,"PSEE","x","x","AM 25/01/2010",3.4,{"$f":"VLOOKUP(C33,'[1]PSEE 27_7_2015'!#REF!,15,FALSE)","v":{"$error":"#REF!"}},3.4,"Néant","Néant",{"$f":"VLOOKUP(C33,[2]Feuil1!#REF!,4,FALSE)","v":{"$error":"#REF!"}},"Néant",50,"Avis 08/11/2015",5,"/","X"]
["Métaux","Cobalt",1379,null,"x","x","Néant","Néant",null,null,"Néant","Néant",{"$f":"VLOOKUP(C34,[2]Feuil1!#REF!,4,FALSE)","v":{"$error":"#REF!"}},"Néant",40,"Avis 08/11/2015",3,"/","X"]
["Métaux","Cuivre (métal total)",1392,"PSEE","x","x","AM 25/01/2010",1,{"$f":"VLOOKUP(C35,'[1]PSEE 27_7_2015'!#REF!,15,FALSE)","v":{"$error":"#REF!"}},1,"Néant","Néant",{"$f":"VLOOKUP(C35,[2]Feuil1!#REF!,4,FALSE)","v":{"$error":"#REF!"}},"Néant",50,"Avis 08/11/2015",5,"/","X"]
["Pesticides","Cybutrine",1935,"SP","x","x","AM 25/01/2010",2.5000000000000001E-3,{"$f":"VLOOKUP(C36,'[1]PSEE 27_7_2015'!#REF!,15,FALSE)","v":{"$error":"#REF!"}},{"$f":"VLOOKUP(C36,[2]Feuil1!#REF!,2,FALSE)","v":{"$error":"#REF!"}},2.5000000000000001E-3,1.6E-2,{"$f":"VLOOKUP(C36,[2]Feuil1!#REF!,4,FALSE)","v":{"$error":"#REF!"}},1.6E-2,"Néant",null,2.5000000000000001E-2,0.05,null,"X"]
["Pesticides","Cyperméthrine",1140,"SP","x","x","AM 25/01/2010","8 × 10–5",{"$f":"VLOOKUP(C37,'[1]PSEE 27_7_2015'!#REF!,15,FALSE)","v":{"$error":"#REF!"}},{"$f":"VLOOKUP(C37,[2]Feuil1!#REF!,2,FALSE)","v":{"$error":"#REF!"}},"8 × 10–6","6 × 10–4",{"$f":"VLOOKUP(C37,[2]Feuil1!#REF!,4,FALSE)","v":{"$error":"#REF!"}},"6 × 10–5","Néant",null,0.02,0.04,null,"X"]
["Pesticides","Cyprodinil",1359,"PSEE","x","x","AM 27/07/2015",2.5999999999999999E-2,{"$f":"VLOOKUP(C38,'[1]PSEE 27_7_2015'!#REF!,15,FALSE)","v":{"$error":"#REF!"}},{"$f":"VLOOKUP(C38,[2]Feuil1!#REF!,2,FALSE)","v":{"$error":"#REF!"}},"Néant","Néant",{"$f":"VLOOKUP(C38,[2]Feuil1!#REF!,4,FALSE)","v":{"$error":"#REF!"}},"Néant","Néant",null,0.05,0.1,null,"X"]
["Autres","Di(2-éthylhexyl)phtalate (DEHP)",6616,"SDP","x","x","AM 25/01/2010",1.3,{"$f":"VLOOKUP(C39,'[1]PSEE 27_7_2015'!#REF!,15,FALSE)","v":{"$error":"#REF!"}},{"$f":"VLOOKUP(C39,[2]Feuil1!#REF!,2,FALSE)","v":{"$error":"#REF!"}},1.3,"sans objet",{"$f":"VLOOKUP(C39,[2]Feuil1!#REF!,4,FALSE)","v":{"$error":"#REF!"}},"sans objet",1,"Avis 08/11/2015",1,2,null,"X"]
["Organétains","Dibutylétain cation",7074,null,"x","x","Néant","Néant",null,null,"Néant","Néant","Néant","Néant","50(9)","Avis 08/11/2015",0.02,0.04,null,"X"]
["COHV","Dichlorométhane",1168,"SP","x","x","AM 25/01/2010",20,{"$f":"VLOOKUP(C41,'[1]PSEE 27_7_2015'!#REF!,15,FALSE)","v":{"$error":"#REF!"}},{"$f":"VLOOKUP(C41,[2]Feuil1!#REF!,2,FALSE)","v":{"$error":"#REF!"}},20,"sans objet",{"$f":"VLOOKUP(C41,[2]Feuil1!#REF!,4,FALSE)","v":{"$error":"#REF!"}},"sans objet",10,"Avis 08/11/2015",5,"/","X"]
["Pesticides","Dichlorvos",1170,"SP","x","x","AM 25/01/2010","6 × 10–4",{"$f":"VLOOKUP(C42,'[1]PSEE 27_7_2015'!#REF!,15,FALSE)","v":{"$error":"#REF!"}},{"$f":"VLOOKUP(C42,[2]Feuil1!#REF!,2,FALSE)","v":{"$error":"#REF!"}},"6 × 10–5","7 × 10–4",{"$f":"VLOOKUP(C42,[2]Feuil1!#REF!,4,FALSE)","v":{"$error":"#REF!"}},"7 × 10–5","Néant",null,0.05,0.1,null,"X"]
["Pesticides","Dicofol",1172,"SDP","x","x","AM 25/01/2010","1,3 × 10–3",{"$f":"VLOOKUP(C43,'[1]PSEE 27_7_2015'!#REF!,15,FALSE)","v":{"$error":"#REF!"}},{"$f":"VLOOKUP(C43,[2]Feuil1!#REF!,2,FALSE)","v":{"$error":"#REF!"}},"3,2 × 10–5","sans objet",{"$f":"VLOOKUP(C43,[2]Feuil1!#REF!,4,FALSE)","v":{"$error":"#REF!"}},"sans objet","Néant",null,0.05,0.1,null,"X"]
["Pesticides","Diflufenicanil",1814,"PSEE","x","x","AM 27/07/2015",0.01,{"$f":"VLOOKUP(C44,'[1]PSEE 27_7_2015'!#REF!,15,FALSE)","v":{"$error":"#REF!"}},{"$f":"VLOOKUP(C44,[2]Feuil1!#REF!,2,FALSE)","v":{"$error":"#REF!"}},"Néant","Néant",{"$f":"VLOOKUP(C44,[2]Feuil1!#REF!,4,FALSE)","v":{"$error":"#REF!"}},"Néant","Néant",null,0.05,0.1,null,"X"]
["Dioxines","Dioxines et composés de type dioxine (Somme de PCDD + PCDF + PCB-TD)",7707,"SDP","x","x","AM 25/01/2010","Néant",{"$f":"VLOOKUP(C45,'[1]PSEE 27_7_2015'!#REF!,15,FALSE)","v":{"$error":"#REF!"}},{"$f":"VLOOKUP(C45,[2]Feuil1!#REF!,2,FALSE)","v":{"$error":"#REF!"}},{"$error":"#N/A"},"sans objet",{"$f":"VLOOKUP(C45,[2]Feuil1!#REF!,4,FALSE)","v":{"$error":"#REF!"}},{"$error":"#N/A"},"Néant",null,5.0000000000000001E-3,0.01,null,"X"]
["Pesticides","Diuron",1177,"SP","x","x","AM 25/01/2010",0.2,{"$f":"VLOOKUP(C46,'[1]PSEE 27_7_2015'!#REF!,15,FALSE)","v":{"$error":"#REF!"}},{"$f":"VLOOKUP(C46,[2]Feuil1!#REF!,2,FALSE)","v":{"$error":"#REF!"}},0.2,1.8,{"$f":"VLOOKUP(C46,[2]Feuil1!#REF!,4,FALSE)","v":{"$error":"#REF!"}},1.8,1,"Avis 08/11/2015",0.05,0.05,null,"X"]
["BTEX","Ethylbenzène",1497,null,"x","x","Néant","Néant",null,null,"Néant","Néant",{"$f":"VLOOKUP(C47,[2]Feuil1!#REF!,4,FALSE)","v":{"$error":"#REF!"}},"Néant","200(7)","Avis 08/11/2015",1,"/","X"]
["HAP","Fluoranthène",1191,"SP","x","x","AM 25/01/2010",6.3E-3,{"$f":"VLOOKUP(C48,'[1]PSEE 27_7_2015'!#REF!,15,FALSE)","v":{"$error":"#REF!"}},{"$f":"VLOOKUP(C48,[2]Feuil1!#REF!,2,FALSE)","v":{"$error":"#REF!"}},6.3E-3,0.12,{"$f":"VLOOKUP(C48,[2]Feuil1!#REF!,4,FALSE)","v":{"$error":"#REF!"}},0.12,1,"Avis 08/11/2015",0.01,0.01,null,"X"]
["Pesticides","Glyphosate",1506,"PSEE","x","x","AM 27/07/2015",28,{"$f":"VLOOKUP(C49,'[1]PSEE 27_7_2015'!#REF!,15,FALSE)","v":{"$error":"#REF!"}},{"$f":"VLOOKUP(C49,[2]Feuil1!#REF!,2,FALSE)","v":{"$error":"#REF!"}},"Néant","Néant",{"$f":"VLOOKUP(C49,[2]Feuil1!#REF!,4,FALSE)","v":{"$error":"#REF!"}},"Néant","Néant",null,0.1,0.2,null,"X"]
["Pesticides","Heptachlore",1197,"SDP","x","x","AM 25/01/2010","2 × 10–7 (2)",{"$f":"VLOOKUP(C50,'[1]PSEE 27_7_2015'!#REF!,15,FALSE)","v":{"$error":"#REF!"}},"2 × 10–7","1 × 10–8 (2)","3 × 10–4 (2)",{"$f":"VLOOKUP(C50,[2]Feuil1!#REF!,4,FALSE)","v":{"$error":"#REF!"}},"3 × 10–5 (2)",1,"Avis 08/11/2015",0.02,0.04,null,"X"]
["Pesticides","Heptachlore epoxide (exo)",1748,"SP","x","x","AM 25/01/2010","2 × 10–7 (2)",{"$f":"VLOOKUP(C51,'[1]PSEE 27_7_2015'!#REF!,15,FALSE)","v":{"$error":"#REF!"}},"2 × 10–7","1 × 10–8 (2)","3 × 10–4 (2)",{"$f":"VLOOKUP(C51,[2]Feuil1!#REF!,4,FALSE)","v":{"$error":"#REF!"}},"3 × 10–5 (2)","Néant",null,0.02,0.04,null,"X"]
["Autres","Hexabromocyclododecane (HBCDD)",7128,"SP","x","x","AM 25/01/2010",1.6000000000000001E-3,{"$f":"VLOOKUP(C52,'[1]PSEE 27_7_2015'!#REF!,15,FALSE)","v":{"$error":"#REF!"}},1.6000000000000001E-3,"8 × 10–4",0.5,{"$f":"VLOOKUP(C52,[2]Feuil1!#REF!,4,FALSE)","v":{"$error":"#REF!"}},0.05,"Néant",null,0.05,0.1,null,"X"]
["Chlorobenzènes","Hexachlorobenzène",1199,"SDP","x","x","AM 25/01/2010","Néant","Néant","Néant","Néant",0.05,{"$f":"VLOOKUP(C53,[2]Feuil1!#REF!,4,FALSE)","v":{"$error":"#REF!"}},0.05,1,"Avis 08/11/2015",0.01,0.02,null,"X"]
["COHV ou autres","Hexachlorobutadiène",1652,"SDP","x","x","AM 25/01/2010","Néant","Néant","Néant","Néant",0.6,{"$f":"VLOOKUP(C54,[2]Feuil1!#REF!,4,FALSE)","v":{"$error":"#REF!"}},0.6,1,"Avis 08/11/2015",0.5,0.5,null,"X"]
["Pesticides","Imidaclopride",1877,"PSEE","x","x","AM 27/07/2015",0.2,{"$f":"VLOOKUP(C55,'[1]PSEE 27_7_2015'!#REF!,15,FALSE)","v":{"$error":"#REF!"}},{"$f":"VLOOKUP(C55,[2]Feuil1!#REF!,2,FALSE)","v":{"$error":"#REF!"}},"Néant","Néant",{"$f":"VLOOKUP(C55,[2]Feuil1!#REF!,4,FALSE)","v":{"$error":"#REF!"}},"Néant","Néant",null,0.05,0.1,null,"X"]
["HAP","Indeno (1,2,3-cd) Pyrène",1204,"SDP","x","x","AM 25/01/2010","Néant",{"$f":"VLOOKUP(C56,'[1]PSEE 27_7_2015'!#REF!,15,FALSE)","v":{"$error":"#REF!"}},"Néant","Néant","sans objet","sans objet","sans objet","5(8)","Avis 08/11/2015",5.0000000000000001E-3,0.01,null,"X"]
["Pesticides","Iprodione",1206,"PSEE","x","x","AM 27/07/2015",0.35,{"$f":"VLOOKUP(C57,'[1]PSEE 27_7_2015'!#REF!,15,FALSE)","v":{"$error":"#REF!"}},{"$f":"VLOOKUP(C57,[2]Feuil1!#REF!,2,FALSE)","v":{"$error":"#REF!"}},"Néant","Néant",{"$f":"VLOOKUP(C57,[2]Feuil1!#REF!,4,FALSE)","v":{"$error":"#REF!"}},"Néant","Néant",null,0.1,0.2,null,"X"]
["Pesticides","Isoproturon",1208,"SP","x","x","AM 25/01/2010",0.3,{"$f":"VLOOKUP(C58,'[1]PSEE 27_7_2015'!#REF!,15,FALSE)","v":{"$error":"#REF!"}},{"$f":"VLOOKUP(C58,[2]Feuil1!#REF!,2,FALSE)","v":{"$error":"#REF!"}},0.3,1,{"$f":"VLOOKUP(C58,[2]Feuil1!#REF!,4,FALSE)","v":{"$error":"#REF!"}},1,1,"Avis 08/11/2015",0.05,0.05,null,"X"]
["Métaux","Mercure (métal total)",1387,"SDP","x","x","AM 25/01/2010","Néant","Néant","Néant","Néant","0,07 (3)",{"$f":"VLOOKUP(C59,[2]Feuil1!#REF!,4,FALSE)","v":{"$error":"#REF!"}},"0,07 (3)",1,"Avis 08/11/2015",0.2,"/","X"]
["Pesticides","Métaldéhyde",1796,"PSEE","x","x","AM 27/07/2015",60.6,{"$f":"VLOOKUP(C60,'[1]PSEE 27_7_2015'!#REF!,15,FALSE)","v":{"$error":"#REF!"}},{"$f":"VLOOKUP(C60,[2]Feuil1!#REF!,2,FALSE)","v":{"$error":"#REF!"}},"Néant","Néant",{"$f":"VLOOKUP(C60,[2]Feuil1!#REF!,4,FALSE)","v":{"$error":"#REF!"}},"Néant","Néant",null,0.1,0.2,null,"X"]
["Pesticides","Métazachlore",1670,"PSEE","x","x","AM 27/07/2015",1.9E-2,{"$f":"VLOOKUP(C61,'[1]PSEE 27_7_2015'!#REF!,15,FALSE)","v":{"$error":"#REF!"}},{"$f":"VLOOKUP(C61,[2]Feuil1!#REF!,2,FALSE)","v":{"$error":"#REF!"}},"Néant","Néant",{"$f":"VLOOKUP(C61,[2]Feuil1!#REF!,4,FALSE)","v":{"$error":"#REF!"}},"Néant","Néant",null,0.05,0.1,null,"X"]
["Organétains","Monobutylétain cation",2542,null,"x","x","Néant","Néant",{"$f":"VLOOKUP(C62,'[1]PSEE 27_7_2015'!#REF!,15,FALSE)","v":{"$error":"#REF!"}},"Néant","Néant","Néant",{"$f":"VLOOKUP(C62,[2]Feuil1!#REF!,4,FALSE)","v":{"$error":"#REF!"}},"Néant","50(9)","Avis 08/11/2015",0.02,0.04,null,"X"]
["HAP","Naphtalène",1517,"SP","x","x","AM 25/01/2010",2,{"$f":"VLOOKUP(C63,'[1]PSEE 27_7_2015'!#REF!,15,FALSE)","v":{"$error":"#REF!"}},{"$f":"VLOOKUP(C63,[2]Feuil1!#REF!,2,FALSE)","v":{"$error":"#REF!"}},2,130,{"$f":"VLOOKUP(C63,[2]Feuil1!#REF!,4,FALSE)","v":{"$error":"#REF!"}},130,10,"Avis 08/11/2015",0.05,0.05,null,"X"]
["Métaux","Nickel (métal total)",1386,"SP","x","x","AM 25/01/2010","4(3)",{"$f":"VLOOKUP(C64,'[1]PSEE 27_7_2015'!#REF!,15,FALSE)","v":{"$error":"#REF!"}},{"$f":"VLOOKUP(C64,[2]Feuil1!#REF!,2,FALSE)","v":{"$error":"#REF!"}},"8,6 (3)","34 (3)",{"$f":"VLOOKUP(C64,[2]Feuil1!#REF!,4,FALSE)","v":{"$error":"#REF!"}},"34 (3)",20,"Avis 08/11/2015",5,"/","X"]
["Pesticides","Nicosulfuron",1882,"PSEE","x","x","AM 27/07/2015",3.5000000000000003E-2,{"$f":"VLOOKUP(C65,'[1]PSEE 27_7_2015'!#REF!,15,FALSE)","v":{"$error":"#REF!"}},{"$f":"VLOOKUP(C65,[2]Feuil1!#REF!,2,FALSE)","v":{"$error":"#REF!"}},"Néant","Néant",{"$f":"VLOOKUP(C65,[2]Feuil1!#REF!,4,FALSE)","v":{"$error":"#REF!"}},"Néant","Néant",null,0.05,0.1,null,"X"]
["Alkylphénols","Nonylphénols",1958,"SDP","x","x","AM 25/01/2010",0.3,{"$f":"VLOOKUP(C66,'[1]PSEE 27_7_2015'!#REF!,15,FALSE)","v":{"$error":"#REF!"}},{"$f":"VLOOKUP(C66,[2]Feuil1!#REF!,2,FALSE)","v":{"$error":"#REF!"}},0.3,2,{"$f":"VLOOKUP(C66,[2]Feuil1!#REF!,4,FALSE)","v":{"$error":"#REF!"}},2,"1(10)","Avis 08/11/2015",0.5,0.5,null,"X"]
["Alkylphénols","NP1OE",6366,null,"x","x","Néant","Néant",null,null,"Néant","Néant",{"$f":"VLOOKUP(C67,[2]Feuil1!#REF!,4,FALSE)","v":{"$error":"#REF!"}},"Néant","1(10)","Avis 08/11/2015",0.1,0.2,null,"X"]
["Alkylphénols","NP2OE",6369,null,"x","x","Néant","Néant",null,null,"Néant","Néant",{"$f":"VLOOKUP(C68,[2]Feuil1!#REF!,4,FALSE)","v":{"$error":"#REF!"}},"Néant","1(10)","Avis 08/11/2015",0.1,{"$f":"2*Q68","v":0.2},null,"X"]
["Alkylphénols","Octylphénols",1959,"SP","x","x","AM 25/01/2010",0.1,{"$f":"VLOOKUP(C69,'[1]PSEE 27_7_2015'!#REF!,15,FALSE)","v":{"$error":"#REF!"}},{"$f":"VLOOKUP(C69,[2]Feuil1!#REF!,2,FALSE)","v":{"$error":"#REF!"}},0.01,"sans objet",{"$f":"VLOOKUP(C69,[2]Feuil1!#REF!,4,FALSE)","v":{"$error":"#REF!"}},"sans objet","1(11)","Avis 08/11/2015",0.1,0.2,null,"X"]
["Alkylphénols","OP1OE",6370,null,"x","x","Néant","Néant",null,null,"Néant","Néant",{"$f":"VLOOKUP(C70,[2]Feuil1!#REF!,4,FALSE)","v":{"$error":"#REF!"}},"Néant","1(11)","Avis 08/11/2015",0.1,0.2,null,"X"]
["Alkylphénols","OP2OE",6371,null,"x","x","Néant","Néant",null,null,"Néant","Néant",{"$f":"VLOOKUP(C71,[2]Feuil1!#REF!,4,FALSE)","v":{"$error":"#REF!"}},"Néant","1(11)","Avis 08/11/2015",0.1,0.2,null,"X"]
["Pesticides","Oxadiazon",1667,"PSEE","x","x","AM 27/07/2015",0.09,{"$f":"VLOOKUP(C72,'[1]PSEE 27_7_2015'!#REF!,15,FALSE)","v":{"$error":"#REF!"}},{"$f":"VLOOKUP(C72,[2]Feuil1!#REF!,2,FALSE)","v":{"$error":"#REF!"}},"Néant","Néant",{"$f":"VLOOKUP(C72,[2]Feuil1!#REF!,4,FALSE)","v":{"$error":"#REF!"}},"Néant","Néant","Avis 08/11/2015",0.03,0.05,null,"X"]
["PCB","PCB 028",1239,"SDP","x",null,null,"Néant",null,null,"Néant","Néant",{"$f":"VLOOKUP(C73,[2]Feuil1!#REF!,4,FALSE)","v":{"$error":"#REF!"}},"Néant","0,1(12)","Avis 08/11/2015",5.0000000000000001E-3,0.01,null,"X"]
["PCB","PCB 052",1241,"Liste 1","x",null,null,"Néant",null,null,"Néant","Néant",{"$f":"VLOOKUP(C74,[2]Feuil1!#REF!,4,FALSE)","v":{"$error":"#REF!"}},"Néant","0,1(12)","Avis 08/11/2015",5.0000000000000001E-3,0.01,null,"X"]
["PCB","PCB 101",1242,"SDP","x",null,null,"Néant",null,null,"Néant","Néant",{"$f":"VLOOKUP(C75,[2]Feuil1!#REF!,4,FALSE)","v":{"$error":"#REF!"}},"Néant","0,1(12)","Avis 08/11/2015",5.0000000000000001E-3,0.01,null,"X"]
["PCB","PCB 118",1243,"SDP","x",null,null,"Néant",null,null,"Néant","Néant",{"$f":"VLOOKUP(C76,[2]Feuil1!#REF!,4,FALSE)","v":{"$error":"#REF!"}},"Néant","0,1(12)","Avis 08/11/2015",5.0000000000000001E-3,0.01,null,"X"]
["PCB","PCB 138",1244,"SDP","x",null,null,"Néant",null,null,"Néant","Néant",{"$f":"VLOOKUP(C77,[2]Feuil1!#REF!,4,FALSE)","v":{"$error":"#REF!"}},"Néant","0,1(12)","Avis 08/11/2015",5.0000000000000001E-3,0.01,null,"X"]
["PCB","PCB 153",1245,"SDP","x",null,null,"Néant",null,null,"Néant","Néant",{"$f":"VLOOKUP(C78,[2]Feuil1!#REF!,4,FALSE)","v":{"$error":"#REF!"}},"Néant","0,1(12)","Avis 08/11/2015",5.0000000000000001E-3,0.01,null,"X"]
["PCB","PCB 180",1246,"SDP","x",null,null,"Néant",null,null,"Néant","Néant",{"$f":"VLOOKUP(C79,[2]Feuil1!#REF!,4,FALSE)","v":{"$error":"#REF!"}},"Néant","0,1(12)","Avis 08/11/2015",5.0000000000000001E-3,0.01,null,"X"]
["Pesticides","Pendiméthaline",1234,"PSEE","x","x","AM 27/07/2015",0.02,{"$f":"VLOOKUP(C80,'[1]PSEE 27_7_2015'!#REF!,15,FALSE)","v":{"$error":"#REF!"}},{"$f":"VLOOKUP(C80,[2]Feuil1!#REF!,2,FALSE)","v":{"$error":"#REF!"}},"Néant","Néant",{"$f":"VLOOKUP(C80,[2]Feuil1!#REF!,4,FALSE)","v":{"$error":"#REF!"}},"Néant","Néant",null,0.05,0.1,null,"X"]
["Chlorobenzènes","Pentachlorobenzène",1888,"SDP","x","x","AM 25/01/2010",7.0000000000000001E-3,{"$f":"VLOOKUP(C81,'[1]PSEE 27_7_2015'!#REF!,15,FALSE)","v":{"$error":"#REF!"}},{"$f":"VLOOKUP(C81,[2]Feuil1!#REF!,2,FALSE)","v":{"$error":"#REF!"}},"7 × 10–4","sans objet",{"$f":"VLOOKUP(C81,[2]Feuil1!#REF!,4,FALSE)","v":{"$error":"#REF!"}},"sans objet",1,"Avis 08/11/2015",0.01,0.02,null,"X"]
["Chlorophénols","Pentachlorophénol",1235,"SP","x","x","AM 25/01/2010",0.4,{"$f":"VLOOKUP(C82,'[1]PSEE 27_7_2015'!#REF!,15,FALSE)","v":{"$error":"#REF!"}},{"$f":"VLOOKUP(C82,[2]Feuil1!#REF!,2,FALSE)","v":{"$error":"#REF!"}},0.4,1,{"$f":"VLOOKUP(C82,[2]Feuil1!#REF!,4,FALSE)","v":{"$error":"#REF!"}},1,1,"Avis 08/11/2015",0.1,0.2,null,"X"]
["Autres","Phosphate de tributyle (TBP)",1847,"PSEE","x","x","AM 27/07/2015",82,{"$f":"VLOOKUP(C83,'[1]PSEE 27_7_2015'!#REF!,15,FALSE)","v":{"$error":"#REF!"}},{"$f":"VLOOKUP(C83,[2]Feuil1!#REF!,2,FALSE)","v":{"$error":"#REF!"}},"Néant","Néant",{"$f":"VLOOKUP(C83,[2]Feuil1!#REF!,4,FALSE)","v":{"$error":"#REF!"}},"Néant","Néant","Avis 08/11/2015",0.1,0.2,null,"X"]
["Métaux","Plomb (métal total)",1382,"SP","x","x","AM 25/01/2010","1,2(3)",{"$f":"VLOOKUP(C84,'[1]PSEE 27_7_2015'!#REF!,15,FALSE)","v":{"$error":"#REF!"}},{"$f":"VLOOKUP(C84,[2]Feuil1!#REF!,2,FALSE)","v":{"$error":"#REF!"}},"1,3 (3)","14 (3)",{"$f":"VLOOKUP(C84,[2]Feuil1!#REF!,4,FALSE)","v":{"$error":"#REF!"}},"14 (3)",20,"Avis 08/11/2015",2,"/","X"]
["Pesticides","Quinoxyfène",2028,"SDP","x","x","AM 25/01/2010",0.15,{"$f":"VLOOKUP(C85,'[1]PSEE 27_7_2015'!#REF!,15,FALSE)","v":{"$error":"#REF!"}},{"$f":"VLOOKUP(C85,[2]Feuil1!#REF!,2,FALSE)","v":{"$error":"#REF!"}},1.4999999999999999E-2,2.7,{"$f":"VLOOKUP(C85,[2]Feuil1!#REF!,4,FALSE)","v":{"$error":"#REF!"}},0.54,"Néant",null,0.1,0.2,null,"X"]
["Autres","Sulfonate de perfluorooctane (PFOS)",6560,"SDP","x","x","AM 25/01/2010","6,5 × 10–4",{"$f":"VLOOKUP(C86,'[1]PSEE 27_7_2015'!#REF!,15,FALSE)","v":{"$error":"#REF!"}},{"$f":"VLOOKUP(C86,[2]Feuil1!#REF!,2,FALSE)","v":{"$error":"#REF!"}},"1,3 × 10–4",36,"Néant",7.2,0,"Avis 08/11/2015",0.05,0.1,null,"X"]
["Pesticides","Tebuconazole",1694,"PSEE","x","x","AM 27/07/2015",1,{"$f":"VLOOKUP(C87,'[1]PSEE 27_7_2015'!#REF!,15,FALSE)","v":{"$error":"#REF!"}},{"$f":"VLOOKUP(C87,[2]Feuil1!#REF!,2,FALSE)","v":{"$error":"#REF!"}},"Néant","Néant",{"$f":"VLOOKUP(C87,[2]Feuil1!#REF!,4,FALSE)","v":{"$error":"#REF!"}},"Néant","Néant",null,0.1,0.2,null,"X"]
["Pesticides","Terbutryne",1269,"SP","x","x","AM 25/01/2010",6.5000000000000002E-2,{"$f":"VLOOKUP(C88,'[1]PSEE 27_7_2015'!#REF!,15,FALSE)","v":{"$error":"#REF!"}},{"$f":"VLOOKUP(C88,[2]Feuil1!#REF!,2,FALSE)","v":{"$error":"#REF!"}},6.4999999999999997E-3,0.34,{"$f":"VLOOKUP(C88,[2]Feuil1!#REF!,4,FALSE)","v":{"$error":"#REF!"}},3.4000000000000002E-2,"Néant",null,0.1,0.2,null,"X"]
["COHV","Tétrachloroéthylène",1272,"Liste 1","x","x","AM 25/01/2010",10,{"$f":"VLOOKUP(C89,'[1]PSEE 27_7_2015'!#REF!,15,FALSE)","v":{"$error":"#REF!"}},{"$f":"VLOOKUP(C89,[2]Feuil1!#REF!,2,FALSE)","v":{"$error":"#REF!"}},10,"sans objet",{"$f":"VLOOKUP(C89,[2]Feuil1!#REF!,4,FALSE)","v":{"$error":"#REF!"}},"sans objet",10,"Avis 08/11/2015",0.5,"/","X"]
["COHV","Tétrachlorure de carbone",1276,"Liste 1","x","x","AM 25/01/2010",12,{"$f":"VLOOKUP(C90,'[1]PSEE 27_7_2015'!#REF!,15,FALSE)","v":{"$error":"#REF!"}},{"$f":"VLOOKUP(C90,[2]Feuil1!#REF!,2,FALSE)","v":{"$error":"#REF!"}},12,"sans objet",{"$f":"VLOOKUP(C90,[2]Feuil1!#REF!,4,FALSE)","v":{"$error":"#REF!"}},"sans objet",1,"Avis 08/11/2015",0.5,"/","X"]
["Pesticides","Thiabendazole",1713,"PSEE","x","x","AM 27/07/2015",1.2,{"$f":"VLOOKUP(C91,'[1]PSEE 27_7_2015'!#REF!,15,FALSE)","v":{"$error":"#REF!"}},{"$f":"VLOOKUP(C91,[2]Feuil1!#REF!,2,FALSE)","v":{"$error":"#REF!"}},"Néant","Néant",{"$f":"VLOOKUP(C91,[2]Feuil1!#REF!,4,FALSE)","v":{"$error":"#REF!"}},"Néant","Néant",null,0.1,0.2,null,"X"]
["Métaux","Titane (métal total)",1373,null,"x","x","Néant","Néant",{"$f":"VLOOKUP(C92,'[1]PSEE 27_7_2015'!#REF!,15,FALSE)","v":{"$error":"#REF!"}},{"$f":"VLOOKUP(C92,[2]Feuil1!#REF!,2,FALSE)","v":{"$error":"#REF!"}},"Néant","Néant",{"$f":"VLOOKUP(C92,[2]Feuil1!#REF!,4,FALSE)","v":{"$error":"#REF!"}},"Néant",100,"Avis 08/11/2015",10,"/","X"]
["BTEX","Toluène",1278,"PSEE","x","x","AM 27/07/2015",74,{"$f":"VLOOKUP(C93,'[1]PSEE 27_7_2015'!#REF!,15,FALSE)","v":{"$error":"#REF!"}},{"$f":"VLOOKUP(C93,[2]Feuil1!#REF!,2,FALSE)","v":{"$error":"#REF!"}},"Néant","Néant",{"$f":"VLOOKUP(C93,[2]Feuil1!#REF!,4,FALSE)","v":{"$error":"#REF!"}},"Néant","200(7)","Avis 08/11/2015",1,"/","X"]
["Organétains","Tributylétain cation",2879,"SDP","x","x","AM 25/01/2010","2 × 10–4",{"$f":"VLOOKUP(C94,'[1]PSEE 27_7_2015'!#REF!,15,FALSE)","v":{"$error":"#REF!"}},{"$f":"VLOOKUP(C94,[2]Feuil1!#REF!,2,FALSE)","v":{"$error":"#REF!"}},"2 × 10–4","1,5 × 10–3",{"$f":"VLOOKUP(C94,[2]Feuil1!#REF!,4,FALSE)","v":{"$error":"#REF!"}},"1,5 × 10–3","50(9)","Avis 08/11/2015",0.02,0.02,null,"X"]
["COHV","Trichloroéthylène",1286,"Liste 1","x","x","AM 25/01/2010",10,{"$f":"VLOOKUP(C95,'[1]PSEE 27_7_2015'!#REF!,15,FALSE)","v":{"$error":"#REF!"}},{"$f":"VLOOKUP(C95,[2]Feuil1!#REF!,2,FALSE)","v":{"$error":"#REF!"}},10,"sans objet",{"$f":"VLOOKUP(C95,[2]Feuil1!#REF!,4,FALSE)","v":{"$error":"#REF!"}},"sans objet",10,"Avis 08/11/2015",0.5,"/","X"]
["COHV","Trichlorométhane (chloroforme)",1135,"SP","x","x","AM 25/01/2010",2.5,{"$f":"VLOOKUP(C96,'[1]PSEE 27_7_2015'!#REF!,15,FALSE)","v":{"$error":"#REF!"}},{"$f":"VLOOKUP(C96,[2]Feuil1!#REF!,2,FALSE)","v":{"$error":"#REF!"}},2.5,"sans objet",{"$f":"VLOOKUP(C96,[2]Feuil1!#REF!,4,FALSE)","v":{"$error":"#REF!"}},"sans objet",10,"Avis 08/11/2015",1,"/","X"]
["Organétains","Triphénylétain cation",6372,null,"x","x","Néant","Néant",null,null,"Néant","Néant","Néant","Néant","50(9)","Avis 08/11/2015",0.02,0.04,null,"X"]
["BTEX","Xylènes (Somme o,m,p)",1780,"PSEE","x","x","AM 27/07/2015",1,{"$f":"VLOOKUP(C98,'[1]PSEE 27_7_2015'!#REF!,15,FALSE)","v":{"$error":"#REF!"}},{"$f":"VLOOKUP(C98,[2]Feuil1!#REF!,2,FALSE)","v":{"$error":"#REF!"}},"Néant","Néant",{"$f":"VLOOKUP(C98,[2]Feuil1!#REF!,4,FALSE)","v":{"$error":"#REF!"}},"Néant","200(7)","Avis 08/11/2015",2,"/","X"]
["Métaux","Zinc (métal total)",1383,"PSEE","x","x","AM 25/01/2010",7.8,{"$f":"VLOOKUP(C99,'[1]PSEE 27_7_2015'!#REF!,15,FALSE)","v":{"$error":"#REF!"}},7.8,"Néant","Néant",{"$f":"VLOOKUP(C99,[2]Feuil1!#REF!,4,FALSE)","v":{"$error":"#REF!"}},"Néant",100,"Avis 08/11/2015",5,"/","X"]

{"sheet":"Légende diag","index":9,"n_rows":6,"n_cols":5,"rows_kept":6,"cut":false,"hidden":true,"merged":[]}
[]
[]
[null,"Légende diagnostic concentration",null,"Légende diagnostic flux"]
[null,1,"concentration ajoutée < 0,8 NQE",1,"Flux rejet < 10% du flux théorique admissible"]
[null,2,"concentration ajoutée comprise entre 0,8 NQE et NQE",2,"Flux rejet compris entre 10% et 80% du flux théorique admissible"]
[null,3,"concentration ajoutée > NQE",3,"Flux rejet > 80% du flux théorique admissible"]